Workbook

Sheet 1. Forside
A1: HOFOR Spildevand København A/S
D8: Bilag A
D13: Indholdsfortegnelse
C16: Fane nr. 2 | D16: Samlet prisloft
C17: Fane nr. 3 | D17: Driftsomkostninger
C18: Fane nr. 4 | D18: Historiske investeringer
C19: Fane nr. 5 | D19: Gennemførte investeringer
C20: Fane nr. 6 | D20: Korrektion investeringer
C21: Fane nr. 7 | D21: Planlagte investeringer
C22: Fane nr. 8 | D22: 1:1 omkostninger
C23: Fane nr. 9 | D23: Miljø- og servicemål
C24: Fane nr. 10 | D24: Klimatilpasning
C25: Fane nr. 11 | D25: Nettofinansielle poster
C26: Fane nr. 12 | D26: Over- eller underdækning
C27: Fane nr. 13 | D27: Kontrol med indtægtsrammen og oversigt over ekstraordinære effektiviseringsgevinster
C28: Fane nr. 14 | D28: EAA-beregning
C29: Fane nr. 15 | D29: EAA-beregning
C30: Fane nr. 16 | D30: EAA-beregning
C31: Fane nr. 17 | D31: EAA-beregning

Sheet 2. Samlet prisloft
A1: ='1. Forside'!A1 -> HOFOR Spildevand København A/S
B4: Fane 2. Samlet prisloft for 2015
B6: Driftsomkostninger
B7: Driftsomkostninger i prisloftet for 2014 | C7: ='3. Driftsomkostninger'!C19 -> 130405000.7 | D7: kr.
B8: Bortfald af væsentlige omkostninger | C8: =-'3. Driftsomkostninger'!C24 -> 0 | D8: kr.
B9: Korrektion for prisudviklingen 2014-2015 | C9: ='3. Driftsomkostninger'!C30 -> 104324.0005 | D9: kr.
B10: Forhøjelse til effektivt niveau iht. benchmarkingen | C10: ='3. Driftsomkostninger'!C36 -> 0 | D10: kr.
B11: Korrektion for generelt effektiviseringskrav | C11: =-'3. Driftsomkostninger'!C42 -> -573782.0029 | D11: kr.
B12: Korrektion for individuelt effektiviseringskrav | C12: =-'3. Driftsomkostninger'!C51 -> -6520250.033 | D12: kr.
B13: Driftsomkostninger i alt | C13: =SUM(C7:C12) -> 123415292.6 | D13: kr. | E13: =C13 -> 123415292.6 | F13: kr.
B14: Investeringer
B15: Tillæg for historiske investeringer | C15: ='4. Historiske investeringer'!C9 -> 115540516.6 | D15: kr.
B16: Tillæg for gennemførte investeringer i 2011-2013 | C16: ='5. Gennemførte investeringer'!F31 -> 8726337.853 | D16: kr.
B17: Korrektion af tillæg for planlagte investeringer vedrørende 2013 | C17: ='6. Korrektion investeringer'!C10 -> -3059476.733 | D17: kr.
B18: Tillæg for planlagte investeringer i 2014 og 2015 | C18: ='7. Planlagte investeringer'!F34 -> 6575138.4 | D18: kr.
B19: Investeringstillæg i alt | C19: =SUM(C15:C18) -> 127782516.1 | D19: kr. | E19: =C19 -> 127782516.1 | F19: kr.
B20: Øvrige omkostninger mv.
B21: Tillæg for 1:1 omkostninger i 2015 | C21: ='8. 1-1 omkostninger'!C10 -> 254908596 | D21: kr.
B22: Tillæg vedr. revisorerklæringer og DANVA/FVD-kontingent | C22: ='8. 1-1 omkostninger'!C18 -> 169000 | D22: kr.
B23: Korrektion ift. faktiske 1:1 omkostninger i 2013 | C23: ='8. 1-1 omkostninger'!C24 -> -40910366 | D23: kr.
B24: Tillæg for driftsomkostninger til miljø- og servicemål i 2015 | C24: ='9. Miljø- og servicemål'!C9 -> 5170000 | D24: kr.
B25: Korrektion ift. faktiske driftsomkostninger til miljø- og servicemål i 2013 | C25: ='9. Miljø- og servicemål'!C16 -> -197273 | D25: kr.
B26: Tillæg for driftsomkostninger til medfinansiering af klimatilpasningsprojekter i 2015 | C26: ='10. Klimatilpasning'!C16 -> 3359073 | D26: kr.
B27: Korrektion ift. faktiske omkostninger til medfinansiering af klimatilpasningsprojekter i 2013 | C27: ='10. Klimatilpasning'!C23 -> 0 | D27: kr.
B28: Tillæg/fradrag for nettofinansielle poster i 2015 | C28: ='11. Nettofinansielle poster'!C9 -> 2775000 | D28: kr.
B29: Korrektion ift. faktiske nettofinansielle poster i 2013 | C29: ='11. Nettofinansielle poster'!C16 -> 2402162 | D29: kr.
B30: Øvrige omkostninger mv. i alt | C30: =SUM(C21:C29) -> 227676192 | D30: kr. | E30: =C30 -> 227676192 | F30: kr.
B31: Historisk over- eller underdækning
B32: Tillæg/fradrag for over- eller underdækning til og med 2010 | C32: ='12. Over- eller underdækning'!C11 -> -18533681 | D32: kr. | E32: =C32 -> -18533681 | F32: kr.
B33: Korrektion i forhold til tidligere indtægtsramme
B34: Korrektion for overholdelse af indtægtsramme i prisloft 2013 | C34: ='13. Kontrol med indtægtsrammen'!E27 -> -11959378.87 | D34: kr. | E34: =C34 -> -11959378.87 | F34: kr.
B35: Samlet prisloft
B36: Indtægtsramme i 2015 | E36: =SUM(E13:E34) -> 448380940.9 | F36: kr.
B37: Debiteret vandmængde i 2013 | E37: 29554588 | F37: m3
B38: Prisloft 2015 | E38: =E36/E37 -> 15.17128037 | F38: kr./m3

Sheet 3. Driftsomkostninger
A1: ='1. Forside'!A1 -> HOFOR Spildevand København A/S
B4: Fane 3. Driftsomkostninger
B6: Driftsomkostningerne i prisloftet for 2014
B7: Korrigerede driftsomkostninger i prisloftet for 2013 (DOiPL 2013) | C7: 125759820.2 | D7: kr.
B8: Prisfremskrivning 1,5 pct. | C8: =0.015*SUM(C7:C7) -> 1886397.303 | D8: kr.
B9: Generelt effektiviseringskrav (0 pct.) | C9: 0 | D9: kr.
B10: Individuelt effektiviseringskrav | C10: -4633941 | D10: kr.
B11: Tillæg i henhold til § 8, stk. 2, pkt. 1 | C11: 17937199 | D11: kr.
B12: Driftsomkostningerne i prisloftet for 2014 (DOiPL 2014) | C12: =SUM(C7:C11) -> 140949475.5 | D12: kr.
B15: Forskel i § 8, stk. 2, pkt. 1 - tillæg
B16: Godkendt tillæg i PL2014 angivet i 2014-niveau | C16: 17937199 | D16: kr.
B17: Godkendt tillæg i PL2015 angivet i 2014-niveau | C17: 7392724.191 | D17: kr.
B18: Forskel | C18: =C17-C16 -> -10544474.81 | D18: kr.
B19: Korrigerede driftsomkostninger i prisloftet for 2014 | C19: =C12+C18 -> 130405000.7 | D19: kr.
B22: Korrektion for forventet bortfald af væsentlige omkostninger
B23: Selskabets indberettede bortfald af væsentlige omkostninger inden 2015 | C23: 0 | D23: kr.
B24: Korrektion for forventet bortfald | C24: =SUM(C23:C23) -> 0 | D24: kr.
B27: Korrektion for prisudviklingen fra 2014-2015
B28: Driftsomkostningerne i prisloftet for 2014 | C28: =C19-C24 -> 130405000.7 | D28: kr.
B29: Prisudvikling 2014 - 2015 | C29: 0.08 | D29: pct.
B30: Korrektion for prisudvikling | C30: =C28*(C29/100) -> 104324.0005 | D30: kr.
B33: Eventuel forhøjelse til effektivt niveau iht. benchmarkingen
B34: Selskabets effektive driftsomkostninger iht. benchmarkingen | C34: 86302029.44 | D34: kr.
B35: Selskabets pristalskorrigerede driftsomkostninger i 2015-niveau | C35: =C28+C30 -> 130509324.7 | D35: kr.
B36: Eventuel forhøjelse til effektivt niveau | C36: =IF(C35>C34,0,C34-C35) -> 0 | D36: kr.
B39: Korrektion for generelt effektiviseringskrav
B40: Driftsomkostningerne i prisloftet for 2014 | C40: =C28 -> 130405000.7 | D40: kr.
B41: Generelt effektiviseringskrav | C41: 0.44 | D41: pct.
B42: Endeligt generelt effektiviseringskrav | C42: =C40*(C41/100) -> 573782.0029 | D42: kr.
B45: Korrektion for individuelt effektiviseringskrav
B46: Rå effektiviseringspotentiale | C46: 48614984.25 | D46: kr.
B47: Effektiviseringspotentiale efter eventuel korrektion for særlige forhold | C47: 42251220.22 | D47: kr.
B48: Effektiviseringspotentiale efter forsigtighedshensyn | C48: 26146202.63 | D48: kr.
B49: Effektiviseringspotentiale efter eventuel korrektion for sammensætning af signifikante costdrivere | C49: 26146202.63 | D49: kr.
B50: Umiddelbart effektiviseringskrav | C50: =C49/4 -> 6536550.658 | D50: kr.
B51: Endeligt individuelt effektiviseringskrav | C51: =IF(C50>0.05*C28,0.05*C28,IF(C50<0.01*C28,0,C50)) -> 6520250.033 | D51: kr.

Sheet 4. Historiske investeringer
A1: ='3. Driftsomkostninger'!A1 -> HOFOR Spildevand København A/S
B4: Fane 4. Historiske investeringer
B6: Tillæg for historiske investeringer
B7: Værdi af selskabets materielle anlægsaktiver pr. 1. januar 2010 | C7: 4786534653 | D7: kr.
B8: Den årlige standardafskrivning på de materielle anlægsaktiver iht. POLKA | C8: 115540516.6 | D8: kr.
B9: Tillæg i alt i 2015 | C9: =C8 -> 115540516.6 | D9: kr.

Sheet 5. Gennemførte investeringer
A1: ='4. Historiske investeringer'!A1 -> HOFOR Spildevand København A/S
B4: Fane 5. Gennemførte investeringer i 2010 - 2013
B6: Tillæg for gennemførte investeringer i 2013
B7: Beskrivelse af investeringen | C7: Årstal | D7: Std. levetid (år) | E7: Anskaffelses-pris (kr.) | F7: Afskrivning
B8: Pumpeinstallation Miljøklasse A (1.000-1.500 l/s) - Mek/EL | C8: 2013 | D8: 20 | E8: 1336753 | F8: =E8/D8 -> 66837.65 | G8: kr.
B9: Pumpeinstallation Miljøklasse A (1.000-1.500 l/s) - Mek/EL | C9: 2013 | D9: 20 | E9: 1274601 | F9: =E9/D9 -> 63730.05 | G9: kr.
B10: Pumpestationer i brønde (< 6,25 m2), SRO | C10: 2013 | D10: 10 | E10: 645377 | F10: 64537.7 | G10: kr.
B11: Pumpestationer i underjordiske bygværker ( | C11: 2013 | D11: 50 | E11: 1538902 | F11: 30778.04 | G11: kr.
B12: Pumpestationer i underjordiske bygværker ( | C12: 2013 | D12: 20 | E12: 396000 | F12: 19800 | G12: kr.
B13: Pumpestationer i underjordiske bygværker ( | C13: 2013 | D13: 10 | E13: 300610 | F13: 30061 | G13: kr.
B14: Stik | C14: 2013 | D14: 75 | E14: 25799619 | F14: 343994.92 | G14: kr.
B15: Pumpestationer m. overbygning (< 20 m2), SRO | C15: 2013 | D15: 10 | E15: 4514755 | F15: 451475.5 | G15: kr.
B16: Strømpeforing Ø 500 mm < Ledningsnet = Ø 800 mm | C16: 2013 | D16: 50 | E16: 2489433 | F16: 49788.66 | G16: kr.
B17: Ø 200 mm < Ledningsnet = Ø 500 mm | C17: 2013 | D17: 75 | E17: -218240 | F17: -2909.866667 | G17: kr.
B18: Ø 500 mm < Ledningsnet = Ø 800 mm | C18: 2013 | D18: 75 | E18: 6039523 | F18: 80526.97333 | G18: kr.
B19: Ø 800 mm < Ledningsnet = Ø 1000 mm | C19: 2013 | D19: 75 | E19: 1715570 | F19: 22874.26667 | G19: kr.
B20: Pumpeinstallation Miljøklasse A (100-300 l/s) - SRO | C20: 2013 | D20: 10 | E20: 80000 | F20: 8000 | G20: kr.
B21: Andre bygninger (tekniske installationer, målere mv.) | C21: 2013 | D21: 75 | E21: 1283255 | F21: 17110.06667 | G21: kr.
B22: Administrationbygninger | C22: 2013 | D22: 75 | E22: 1519653 | F22: 20262.04 | G22: kr.
B23: Brønde | C23: 2013 | D23: 75 | E23: 2049614 | F23: 27328.18667 | G23: kr.
B24: Forsinkelsesbassiner, lukkede med automatisk rensning og SRO Miljøklasse A (1.000-3.000 m3) - SRO | C24: 2013 | D24: 10 | E24: 1271922 | F24: 127192.2 | G24: kr.
B25: Kælder | C25: 2013 | D25: 75 | E25: 446584 | F25: 5954.453333 | G25: kr.
B26: Kælder (7 - 20 m2) | C26: 2013 | D26: 75 | E26: 12875460 | F26: 171672.8 | G26: kr.
B27: Overbygning | C27: 2013 | D27: 75 | E27: 1359022 | F27: 18120.29333 | G27: kr.
B28: Oversvømmelseskort | C28: 2013 | D28: 5 | E28: 3127991 | F28: 625598.2 | G28: kr.
B29: Tillæg for 2013 | F29: =SUM(F8:F28) -> 2242733.133 | G29: kr.
B30: Tillæg for 2010 - 2012 | F30: 6483604.72 | G30: kr.
B31: Samlet tillæg for gennemførte investeringer | F31: =F29+F30 -> 8726337.853 | G31: kr.

Sheet 6. Korrektion investeringer
A1: ='5. Gennemførte investeringer'!A1 -> HOFOR Spildevand København A/S
B4: Fane 6. Korrektion af tillæg for planlagte investeringer
B6: Korrektion af tillæg for planlagte investeringer vedr. 2013
B7: Tillæg for planlagte investeringer i 2013 i prisloft 2013 | C7: 4200000 | D7: kr.
B8: Tillæg for planlagte investeringer i 2013 i prisloft 2014 | C8: 3344943 | D8: kr.
B9: Selskabets faktiske afskrivninger på gennemførte investeringer i 2013 | C9: ='5. Gennemførte investeringer'!F29 -> 2242733.133 | D9: kr.
B10: Korrektion af tillæg for planlagte investeringer vedr. 2013 | C10: =C9-C7+C9-C8 -> -3059476.733 | D10: kr.

Sheet 7. Planlagte investeringer
A1: ='6. Korrektion investeringer'!A1 -> HOFOR Spildevand København A/S
B4: Fane 7. Planlagte investeringer
B6: Tillæg for planlagte investeringer i 2014 og 2015
B7: Beskrivelse af investeringen | C7: Årstal | D7: Std. levetid (år) | E7: Anskaffelses-pris (kr.) | F7: Afskrivning
B8: Forsinkelsesbassiner, lukkede med automatisk rensning og SRO Miljøklasse A (1.000-3.000 m3) - Mek/EL | C8: 2014 | D8: 20 | E8: 150000 | F8: =E8/D8 -> 7500 | G8: kr.
B9: Overbygning | C9: 2014 | D9: 75 | E9: 6600000 | F9: =E9/D9 -> 88000 | G9: kr.
B10: Pumpestationer m. overbygning (< 20 m2), Mek/EL | C10: 2014 | D10: 20 | E10: 2100000 | F10: =E10/D10 -> 105000 | G10: kr.
B11: Pumpestationer m. overbygning (< 20 m2), SRO | C11: 2014 | D11: 10 | E11: 3000000 | F11: 300000 | G11: kr.
B12: Ø 200 mm < Ledningsnet = Ø 500 mm | C12: 2014 | D12: 75 | E12: 36700000 | F12: 489333.3333 | G12: kr.
B13: Ø 500 mm < Ledningsnet = Ø800 mm | C13: 2014 | D13: 75 | E13: 54385000 | F13: 725133.3333 | G13: kr.
B14: Stik | C14: 2014 | D14: 75 | E14: 19450000 | F14: 259333.3333 | G14: kr.
B15: Strømpeforing Ø 200 mm < Ledningsnet = Ø 500 mm | C15: 2014 | D15: 50 | E15: 5200000 | F15: 104000 | G15: kr.
B16: Ø 800 mm < Ledningsnet = Ø 1000 mm | C16: 2014 | D16: 75 | E16: 6750000 | F16: 90000 | G16: kr.
B17: Kælder | C17: 2015 | D17: 75 | E17: 720000 | F17: 9600 | G17: kr.
B18: Ledningsnet > Ø 1600 mm (rørbassiner og transportledninger) | C18: 2015 | D18: 75 | E18: 93359700 | F18: 1244796 | G18: kr.
B19: Mindre renseanlæg < 5.000 PE uden mulighed for opdeling | C19: 2015 | D19: 40 | E19: 450000 | F19: 11250 | G19: kr.
B20: Pumpeinstallation Miljøklasse B (1.000-1.500 l/s) - Mek/EL | C20: 2015 | D20: 20 | E20: 2664000 | F20: 133200 | G20: kr.
B21: Pumpeinstallation Miljøklasse A (1.000-1.500 l/s) - Mek/EL | C21: 2015 | D21: 20 | E21: 27630000 | F21: 1381500 | G21: kr.
B22: Pumpeinstallation Miljøklasse B (1.000-1.500 l/s) - SRO | C22: 2015 | D22: 10 | E22: 751156 | F22: 75115.6 | G22: kr.
B23: Stik | C23: 2015 | D23: 75 | E23: 15345000 | F23: 204600 | G23: kr.
B24: Ø 1200 mm < Ledningsnet = Ø 1600 mm | C24: 2015 | D24: 75 | E24: 70124760 | F24: 934996.8 | G24: kr.
B25: Administrationbygninger | C25: 2015 | D25: 75 | E25: 3150000 | F25: 42000 | G25: kr.
B26: Brønde | C26: 2015 | D26: 75 | E26: 1350000 | F26: 18000 | G26: kr.
B27: Forsinkelsesbassiner, lukkede med automatisk rensning og SRO Miljøklasse A (større end 10.000 m3) - Konstruktioner | C27: 2015 | D27: 75 | E27: 558000 | F27: 7440 | G27: kr.
B28: Faskiner | C28: 2015 | D28: 5 | E28: 664200 | F28: 132840 | G28: kr.
B29: Hydraulisk model | C29: 2015 | D29: 5 | E29: 450000 | F29: 90000 | G29: kr.
B30: GIS Datasystem | C30: 2015 | D30: 30 | E30: 3375000 | F30: 112500 | G30: kr.
B31: Jordbassin Klasse B | C31: 2015 | D31: 50 | E31: 450000 | F31: 9000 | G31: kr.
B32: Tillæg for 2014 | F32: =SUMIF(C8:C31,"2014",F8:F31) -> 2168300 | G32: kr.
B33: Tillæg for 2015 | F33: =SUMIF(C8:C31,"2015",F8:F31) -> 4406838.4 | G33: kr.
B34: Tillæg i alt | F34: =F32+F33 -> 6575138.4 | G34: kr.

Sheet 8. 1-1 omkostninger
A1: ='7. Planlagte investeringer'!A1 -> HOFOR Spildevand København A/S
B4: Fane 8. 1:1 omkostninger
B6: Tillæg for budgetterede 1:1 omkostninger i 2015
B7: Betaling til Forsyningssekretariatet | C7: 35000 | D7: kr.
B8: Køb af varer og tjenesteydelser hos et andet prisloftreguleret vandselskab | C8: 249873596 | D8: kr.
B9: Ejendomsskatter | C9: 5000000 | D9: kr.
B10: Tillæg i alt | C10: =SUM(C7:C9) -> 254908596 | D10: kr.
B15: Tillæg for budgetterede nødvendige udgifter til revisorerklæringer samt ordinært medlemskab af DANVA og FVD i 2015
B16: Betaling for ordinært medlemskab af DANVA/FVD | C16: 145000 | D16: kr.
B17: Betaling for revisorerklæringer | C17: 24000 | D17: kr.
B18: Tillæg i alt | C18: =SUM(C16:C17) -> 169000 | D18: kr.
B21: Korrektion af tillæg for faktiske 1:1 omkostninger (inkl. revisorerklæringer og ordinært medlemskab af DANVA/FVD) i 2013
B22: Selskabets faktiske 1:1 omkostninger mv. i 2013, jf. reguleringsregnskabet | C22: 195090082 | D22: kr.
B23: Tillæg for budgetterede 1:1 omkostninger mv. i prisloft 2013 | C23: 236000448 | D23: kr.
B24: Korrektion af tillæg for budgetterede 1:1 omkostninger mv. i 2013 | C24: =C22-C23 -> -40910366 | D24: kr.

Sheet 9. Miljø- og servicemål
A1: ='8. 1-1 omkostninger'!A1 -> HOFOR Spildevand København A/S
B4: Fane 9. Driftsomkostninger til miljø- og servicemål
B6: Tillæg for budgetterede driftsomkostninger til miljø- og servicemål i 2015
B7: DSS | C7: 1370000 | D7: kr.
B8: Klimaunderstøttende tiltag | C8: 3800000 | D8: kr.
B9: Tillæg i alt | C9: =SUM(C7:C8) -> 5170000 | D9: kr.
B13: Korrektion af tillæg for faktiske driftsomkostninger til miljø- og servicemål i 2013
B14: Selskabets faktiske driftsomkostninger til miljø- og servicemål i 2013, jf. reguleringsregnskabet | C14: 302727 | D14: kr.
B15: Tillæg for budgetterede driftsomkostninger til miljø- og servicemål i prisloft 2013 | C15: 500000 | D15: kr.
B16: Korrektion af tillæg for budgetterede driftsomkostninger til miljø- og servicemål i 2013 | C16: =C14-C15 -> -197273 | D16: kr.

Sheet 10. Klimatilpasning
A1: ='9. Miljø- og servicemål'!A1 -> HOFOR Spildevand København A/S
B4: Fane 10. Medfinansiering af klimatilpasningsprojekter
B7: Tillæg for budgetterede omkostninger til medfinansiering af klimatilpasningsprojekter i 2015
B8: Ryparken (godkendt i PL2013) | C8: 0 | D8: kr.
B9: Tåsinge Plads (godkendt i PL2014) | C9: 280521 | D9: kr.
B10: Amagerbanen (godkendt i PL2014) | C10: 303766 | D10: kr.
B11: Sankt Annæ Plads (godkendt i PL2014) | C11: 160030 | D11: kr.
B12: Strandstræderne (godkendt i PL2015) | C12: 247150 | D12: kr.
B13: Enghave Park (godkendt i PL2015) | C13: 2216707 | D13: kr.
B14: Skt. Kjelds Kvarteret (godkendt i PL2015) | C14: 0 | D14: kr.
B15: Grundejerforeningen Øresund (godkendt i PL2015) | C15: 150899 | D15: kr.
B16: Tillæg i alt | C16: =SUM(C8:C15) -> 3359073 | D16: kr.
B20: Korrektion af tillæg for faktiske omkostninger til medfinansiering af klimatilpasningsprojekter i 2013
B21: Selskabets faktiske driftsomkostninger til klimatilpasningsprojekter i 2013, jf. reguleringsregnskabet | C21: 0 | D21: kr.
B22: Tillæg for budgetterede driftsomkostninger til klimatilpasningsprojekter i prisloft 2013 | C22: 0 | D22: kr.
B23: Korrektion af tillæg for budgetterede omkostninger til klimatilpasningsprojekter i 2013 | C23: =C21-C22 -> 0 | D23: kr.

Sheet 11. Nettofinansielle poster
A1: ='10. Klimatilpasning'!A1 -> HOFOR Spildevand København A/S
B4: Fane 11. Nettofinansielle poster
B6: Tillæg for budgetterede nettofinansielle poster i 2015
B7: Budgetterede renteudgifter og gebyrer i 2015 | C7: 4000000 | D7: kr.
B8: Budgetterede renteindtægter i 2015 | C8: 1225000 | D8: kr.
B9: Tillæg/fradrag i alt | C9: =C7-C8 -> 2775000 | D9: kr.
B13: Korrektion af tillæg for faktiske nettofinansielle poster i 2013
B14: Selskabets faktiske nettofinansielle poster i 2013, jf. reguleringsregnskabet | C14: -1256838 | D14: kr.
B15: Tillæg for budgetterede nettofinansielle poster i prisloft 2013 | C15: -3659000 | D15: kr.
B16: Korrektion af tillæg for budgetterede nettofinansielle poster i 2013 | C16: =C14-C15 -> 2402162 | D16: kr.

Sheet 12. Over- eller underdækning
A1: ='11. Nettofinansielle poster'!A1 -> HOFOR Spildevand København A/S
B4: Fane 12. Over- eller underdækning til og med 2010
B6: Tillæg/fradrag for over- eller underdækning til og med 2010
B7: Opgjort over- eller underdækning per 31. december 2010 | C7: -118441000 | D7: kr.
B8: Heraf beløb indregnet i prislofterne for 2011 - 2014 | C8: -81373638 | D8: kr.
B9: Endnu ikke indregnet over- eller underdækning | C9: =C7-C8 -> -37067362 | D9: kr.
B10: Resterende indregningsperiode (fastsat i prisloftet for 2012) | C10: 2 | D10: år
B11: Tillæg/fradrag i alt | C11: =IF(C7=0,0,C9/C10) -> -18533681 | D11: kr.

Sheet 13. Kontrol med indtægtsrammen
A1: ='12. Over- eller underdækning'!A1 -> HOFOR Spildevand København A/S
B4: Fane 13. Korrektion for overholdelse af indtægtsrammen i prisloftet for 2013
B6: Samlet opgørelse vedrørende overholdelse af indtægtsrammen i prisloftet for 2013
B7: Indtægtsramme i prisloftet for 2013 | E7: 571196426.1 | F7: kr.
B8: Ikke anvendt likviditet vedrørende investeringer i 2013
B9: Tillæg for historiske investeringer | C9: 116772658.6 | D9: kr.
B10: Tillæg for gennemførte investeringer i 2011 | C10: 6901531 | D10: kr.
B11: Korrektion af tillæg for planlagte investeringer i 2011 | C11: 103042 | D11: kr.
B12: Tillæg for planlagte investeringer i 2012 og 2013 | C12: 4492113 | D12: kr.
B13: Indtægter fra tilslutningsbidrag | C13: 6731973 | D13: kr.
B14: Indtægter fra salg af anlægsaktiver | C14: 0 | D14: kr.
B15: Erstatninger vedr. anlægsaktiver mv. | C15: 0 | D15: kr.
B16: Ekstraordinær effektiviseringsgevinst anvendt til investeringer | C16: 0 | D16: kr.
B17: Udgifter til investeringer | C17: -135001318 | D17: kr.
B18: Ikke anvendt likviditet vedr. investeringer i alt | C18: =SUM(C9:C17) -> -0.4369724989 | D18: kr. | E18: =IF(C18<0,0,-C18) -> 0 | F18: kr.
B19: Ekstraordinære effektiviseringsgevinster anvendt til takstnedsættelse
B20: Ekstraordinær effektiviseringsgevinst anvendt til takstnedsættelse | C20: 0 | D20: kr. | E20: =-C20 -> 0 | F20: kr.
B21: Korrektion af ikke opkrævet tillæg fra 2011 i prisloft 2013
B22: Korrektion af ikke opkrævet tillæg fra 2011 i prisloft 2013 | C22: 0 | D22: kr. | E22: =-C22 -> 0 | F22: kr.
B23: Indtægter fra primære aktiviteter mv.
B24: Indtægter fra kubikmetertakster, faste takster, særbidrag, målergebyrer samt andre takster og gebyrer | C24: 583155805 | D24: kr.
B25: Andre indtægter i prisloftåret, som selskabet har opnået i forbindelse med eller som følge af selskabets primære aktiviteter | C25: 0 | D25: kr.
B26: Indtægter fra primære aktiviteter mv. i alt | C26: =SUM(C24:C25) -> 583155805 | D26: kr. | E26: =-C26 -> -583155805 | F26: kr.
B27: Tillæg/fradrag i prisloftet for 2015 i alt | E27: =E7+E18+E20+E22+E26 -> -11959378.87 | F27: kr.
B31: Oversigt over ekstraordinære effektiviseringsgevinster
C33: 2012 | E33: 2013 | G33: 2014 | I33: 2015 | K33: 2016
B34: Indhentet ekstraordinær effektiviseringsgevinst | C34: 38019010 | D34: kr. | E34: 36954432 | F34: kr. | H34: kr. | J34: kr. | L34: kr.
B35: Gevinst anvendt til investeringer | C35: 0 | D35: kr. | E35: 0 | F35: kr. | H35: kr. | J35: kr. | L35: kr.
B36: Gevinst anvendt til takstnedsættelse | C36: 0 | D36: kr. | E36: 0 | F36: kr. | H36: kr. | J36: kr. | L36: kr.
B37: Korrektion for effektiviseringsgevinst der ikke er anvendt inden 4 år | C37: 0 | D37: kr. | E37: 0 | F37: kr. | H37: kr. | J37: kr. | K37: =IF(C38>SUM(E35:I36),C38-SUM(E35:I36),0)*-1 -> -38019010 | L37: kr.
B38: Resterende gevinst | C38: =C34-C35-C36 -> 38019010 | D38: kr. | E38: =C38+E34-E35-E36 -> 74973442 | F38: kr. | G38: =E38+G34-G35-G36 -> 74973442 | H38: kr. | I38: =G38+I34-I35-I36 -> 74973442 | J38: kr. | K38: =I38+K34-K35-K36+K37 -> 36954432 | L38: kr.

Sheet 14. EAA
B3: Fane 14. EAA-beregning for projekt Strandstræderne
B5: Vejledning:
B6: Dette dokument kan anvendes til at vurdere, hvorvidt klimatilpasning ved hhv. sædvanlig afhjælpning eller alternativt projekt er mest omkostningseffektivt. Oplysninger om forventet årlig effektiv rente
B7: samt omkostninger til anlæg og drift skal indtastes i de orange celler. Det bemærkes, at omkostninger indgår som negative tal.
B8: Herefter beregnes den årlige ækvivalente annuitet ved de to typer klimatilpasningsinitiativer. Sidst beregnes hvilket klimatilpasningsinitiativ, som er mest omkostningseffektivt
B11: Rente | E11: Resultater
B13: Forventet årlig effektiv rente | C13: 0.04 | E13: Årlig ækvivalent annuitet ved sædvanlig afhjælpning | F13: =IF(SUM($C$24:$C$147)<0,($C$13*SUM($K$28:$K$147)/(1-(1+$C$13)^(-($C$22-$C$21+1)))),"") -> -650275.7936
E14: Årlig ækvivalent annuitet ved alternativt klimatilpasningsprojekt | F14: =IF(SUM($F$28:$G$147)<0,($C$13*SUM($L$28:$L$147)/(1-(1+$C$13)^(-($F$22-$F$21+1)))),"") -> -181040.6195
E16: Konklusion | F16: =IF($F$13<0,IF($F$13<>$F$14,IF($F$13>$F$14,"Sædvanlig afhjælpning er mest omkostningseffektivt","Alternativt projekt er mest omkostningseffektivt"),"Sædvanlig afhjælpning og alternativt projekt er lige omkostningseffektivt"),"") -> Alternativt projekt er mest omkostningseffektivt
B19: Klimatilpasning ved sædvanlig afhjælpning | E19: Klimatilpasning ved alternativt klimatilpasningsprojekt
B21: Projektets startår | C21: 2015 | E21: Projektets startår | F21: 2015 | L21: =IF($E21>=$F$21,IF($E21<=$F$22,SUM($F21:$G21),""),"") -> 
B22: Projektets slutår | C22: 2089 | E22: Projektets slutår | F22: 2089 | L22: =IF($E22>=$F$21,IF($E22<=$F$22,SUM($F22:$G22),""),"") -> 
B24: Samlede anlægsomkostninger | C24: -15000000
B27: År | C27: Forventede driftsomkostninger i år t | E27: År | F27: Tilskud til anlægsomkostninger betalt i år t | G27: Tilskud til driftsomkostninger betalt i år t | I27: Sædvanlig afhjælpning: Cash-flow for anlæg | J27: Sædvanlig afhjælpning: Cash-flow for drift | K27: Tilbagediskonteret cash-flow for sædvanlig afhjælpning | L27: Tilbagediskonteret cash-flow for alternativt projekt
B28: 2015 | C28: -10000 | E28: 2015 | F28: -237149.8007 | G28: -10000 | I28: =IF($B28=$C$21,$C$24,"") -> -15000000 | J28: =IF($B28>=$C$21,IF($B28<=$C$22,$C28,""),"") -> -10000 | K28: =IF(SUM($I28:$J28)/((1+$C$13)^($B28-$C$21))<0,SUM($I28:$J28)/((1+$C$13)^($B28-$C$21)),"") -> -15010000 | L28: =IF($E28>=$F$21,IF($E28<=$F$22,IF(SUM($F28:$G28)/((1+$C$13)^($E28-$F$21))<0,SUM($F28:$G28)/((1+$C$13)^($E28-$F$21)),""),""),"") -> -247149.8007
B29: 2016 | C29: -10200 | E29: 2016 | F29: -237149.8007 | G29: -10200 | I29: =IF($B29=$C$21,$C$24,"") ->  | J29: =IF($B29>=$C$21,IF($B29<=$C$22,$C29,""),"") -> -10200 | K29: =IF(SUM($I29:$J29)/((1+$C$13)^($B29-$C$21))<0,SUM($I29:$J29)/((1+$C$13)^($B29-$C$21)),"") -> -9807.692308 | L29: =IF($E29>=$F$21,IF($E29<=$F$22,IF(SUM($F29:$G29)/((1+$C$13)^($E29-$F$21))<0,SUM($F29:$G29)/((1+$C$13)^($E29-$F$21)),""),""),"") -> -237836.3468
B30: =B29+1 -> 2017 | C30: -10404 | E30: =E29+1 -> 2017 | F30: -237149.8007 | G30: -10404 | J30: -10404 | K30: -9619.08284 | L30: -228877.4045
B31: =B30+1 -> 2018 | C31: -10612.08 | E31: =E30+1 -> 2018 | F31: -237149.8007 | G31: -10612.08 | J31: -10612.08 | K31: -9434.100478 | L31: -220259.4098
B32: 2019 | C32: -10824.3216 | E32: 2019 | F32: -237149.8007 | G32: -10824.3216 | J32: -10824.3216 | K32: -9252.675469 | L32: -211969.319
B33: 2020 | C33: -11040.80803 | E33: 2020 | F33: -237149.8007 | G33: -11040.80803 | J33: -11040.80803 | K33: -9074.739402 | L33: -203994.589
B34: 2021 | C34: -11261.62419 | E34: 2021 | F34: -237149.8007 | G34: -11261.62419 | J34: -11261.62419 | K34: -8900.225183 | L34: -196323.1574
B35: 2022 | C35: -11486.85668 | E35: 2022 | F35: -237149.8007 | G35: -11486.85668 | J35: -11486.85668 | K35: -8729.067006 | L35: -188943.425
B36: 2023 | C36: -11716.59381 | E36: 2023 | F36: -237149.8007 | G36: -11716.59381 | J36: -11716.59381 | K36: -8561.200333 | L36: -181844.2368
B37: 2024 | C37: -11950.92569 | E37: 2024 | F37: -237149.8007 | G37: -23901.85137 | J37: -11950.92569 | K37: -8396.561865 | L37: -183411.428
B38: 2025 | C38: -12189.9442 | E38: 2025 | F38: -237149.8007 | G38: -12189.9442 | J38: -12189.9442 | K38: -8235.089521 | L38: -168444.9975
B39: 2026 | C39: -12433.74308 | E39: 2026 | F39: -237149.8007 | G39: -12433.74308 | J39: -12433.74308 | K39: -8076.722415 | L39: -162124.7109
B40: 2027 | C40: -12682.41795 | E40: 2027 | F40: -237149.8007 | G40: -12682.41795 | J40: -12682.41795 | K40: -7921.40083 | L40: -156044.4667
B41: 2028 | C41: -12936.0663 | E41: 2028 | F41: -237149.8007 | G41: -12936.0663 | J41: -12936.0663 | K41: -7769.066199 | L41: -150195.091
B42: 2029 | C42: -13194.78763 | E42: 2029 | F42: -237149.8007 | G42: -13194.78763 | J42: -13194.78763 | K42: -7619.66108 | L42: -144567.7619
B43: 2030 | C43: -13458.68338 | E43: 2030 | F43: -237149.8007 | G43: -13458.68338 | J43: -13458.68338 | K43: -7473.129136 | L43: -139153.9953
B44: 2031 | C44: -13727.85705 | E44: 2031 | F44: -237149.8007 | G44: -13727.85705 | J44: -13727.85705 | K44: -7329.415114 | L44: -133945.6326
B45: 2032 | C45: -14002.41419 | E45: 2032 | F45: -237149.8007 | G45: -14002.41419 | J45: -14002.41419 | K45: -7188.464823 | L45: -128934.8278
B46: 2033 | C46: -14282.46248 | E46: 2033 | F46: -237149.8007 | G46: -14282.46248 | J46: -14282.46248 | K46: -7050.225115 | L46: -124114.0356
B47: 2034 | C47: -14568.11173 | E47: 2034 | F47: -237149.8007 | G47: -29136.22345 | J47: -14568.11173 | K47: -6914.643863 | L47: -126390.644
B48: 2035 | C48: -14859.47396 | E48: 2035 | F48: -237149.8007 | G48: -14859.47396 | J48: -14859.47396 | K48: -6781.669943 | L48: -115013.7433
B49: 2036 | C49: -15156.66344 | E49: 2036 | F49: -237149.8007 | G49: -15156.66344 | J49: -15156.66344 | K49: -6651.253213 | L49: -110720.5545
B50: 2037 | C50: -15459.79671 | E50: 2037 | F50: -237149.8007 | G50: -15459.79671 | J50: -15459.79671 | K50: -6523.344497 | L50: -106589.9803
B51: 2038 | C51: -15768.99264 | E51: 2038 | F51: -237149.8007 | G51: -15768.99264 | J51: -15768.99264 | K51: -6397.895565 | L51: -102615.8146
B52: 2039 | C52: -16084.37249 | E52: 2039 | F52: -237149.8007 | G52: -16084.37249 | J52: -16084.37249 | K52: -6274.859112 | L52: -98792.089
B53: 2040 | C53: -16406.05994 | E53: 2040 | G53: -16406.05994 | J53: -16406.05994 | K53: -6154.188744 | L53: -6154.188744
B54: 2041 | C54: -16734.18114 | E54: 2041 | G54: -16734.18114 | J54: -16734.18114 | K54: -6035.83896 | L54: -6035.83896
B55: 2042 | C55: -17068.86477 | E55: 2042 | G55: -17068.86477 | J55: -17068.86477 | K55: -5919.765134 | L55: -5919.765134
B56: 2043 | C56: -17410.24206 | E56: 2043 | G56: -17410.24206 | J56: -17410.24206 | K56: -5805.923497 | L56: -5805.923497
B57: 2044 | C57: -17758.4469 | E57: 2044 | G57: -35516.89381 | J57: -17758.4469 | K57: -5694.271122 | L57: -11388.54224
B58: 2045 | C58: -18113.61584 | E58: 2045 | G58: -18113.61584 | J58: -18113.61584 | K58: -5584.765908 | L58: -5584.765908
B59: 2046 | C59: -18475.88816 | E59: 2046 | G59: -18475.88816 | J59: -18475.88816 | K59: -5477.366564 | L59: -5477.366564
B60: 2047 | C60: -18845.40592 | E60: 2047 | G60: -18845.40592 | J60: -18845.40592 | K60: -5372.032592 | L60: -5372.032592
B61: 2048 | C61: -19222.31404 | E61: 2048 | G61: -19222.31404 | J61: -19222.31404 | K61: -5268.724272 | L61: -5268.724272
B62: 2049 | C62: -19606.76032 | E62: 2049 | G62: -19606.76032 | J62: -19606.76032 | K62: -5167.402652 | L62: -5167.402652
B63: 2050 | C63: -19998.89553 | E63: 2050 | G63: -19998.89553 | J63: -19998.89553 | K63: -5068.029524 | L63: -5068.029524
B64: 2051 | C64: -20398.87344 | E64: 2051 | G64: -20398.87344 | J64: -20398.87344 | K64: -4970.567418 | L64: -4970.567418
B65: 2052 | C65: -20806.85091 | E65: 2052 | G65: -20806.85091 | J65: -20806.85091 | K65: -4874.979583 | L65: -4874.979583
B66: 2053 | C66: -21222.98792 | E66: 2053 | G66: -21222.98792 | J66: -21222.98792 | K66: -4781.229975 | L66: -4781.229975
B67: 2054 | C67: -21647.44768 | E67: 2054 | G67: -43294.89536 | J67: -21647.44768 | K67: -4689.283245 | L67: -9378.56649
B68: 2055 | C68: -22080.39664 | E68: 2055 | G68: -22080.39664 | J68: -22080.39664 | K68: -4599.104721 | L68: -4599.104721
B69: 2056 | C69: -22522.00457 | E69: 2056 | G69: -22522.00457 | J69: -22522.00457 | K69: -4510.6604 | L69: -4510.6604
B70: 2057 | C70: -22972.44466 | E70: 2057 | G70: -22972.44466 | J70: -22972.44466 | K70: -4423.91693 | L70: -4423.91693
B71: 2058 | C71: -23431.89355 | E71: 2058 | G71: -23431.89355 | J71: -23431.89355 | K71: -4338.841605 | L71: -4338.841605
B72: 2059 | C72: -23900.53142 | E72: 2059 | G72: -23900.53142 | J72: -23900.53142 | K72: -4255.402343 | L72: -4255.402343
B73: 2060 | C73: -24378.54205 | E73: 2060 | G73: -24378.54205 | J73: -24378.54205 | K73: -4173.567683 | L73: -4173.567683
B74: 2061 | C74: -24866.11289 | E74: 2061 | G74: -24866.11289 | J74: -24866.11289 | K74: -4093.306766 | L74: -4093.306766
B75: 2062 | C75: -25363.43515 | E75: 2062 | G75: -25363.43515 | J75: -25363.43515 | K75: -4014.589328 | L75: -4014.589328
B76: 2063 | C76: -25870.70385 | E76: 2063 | G76: -25870.70385 | J76: -25870.70385 | K76: -3937.385687 | L76: -3937.385687
B77: 2064 | C77: -26388.11793 | E77: 2064 | G77: -52776.23586 | J77: -26388.11793 | K77: -3861.666731 | L77: -7723.333463
B78: 2065 | C78: -26915.88029 | E78: 2065 | G78: -26915.88029 | J78: -26915.88029 | K78: -3787.40391 | L78: -3787.40391
B79: 2066 | C79: -27454.1979 | E79: 2066 | G79: -27454.1979 | J79: -27454.1979 | K79: -3714.569219 | L79: -3714.569219
B80: 2067 | C80: -28003.28185 | E80: 2067 | G80: -28003.28185 | J80: -28003.28185 | K80: -3643.135196 | L80: -3643.135196
B81: 2068 | C81: -28563.34749 | E81: 2068 | G81: -28563.34749 | J81: -28563.34749 | K81: -3573.074903 | L81: -3573.074903
B82: 2069 | C82: -29134.61444 | E82: 2069 | G82: -29134.61444 | J82: -29134.61444 | K82: -3504.361925 | L82: -3504.361925
B83: 2070 | C83: -29717.30673 | E83: 2070 | G83: -29717.30673 | J83: -29717.30673 | K83: -3436.970349 | L83: -3436.970349
B84: 2071 | C84: -30311.65286 | E84: 2071 | G84: -30311.65286 | J84: -30311.65286 | K84: -3370.874765 | L84: -3370.874765
B85: 2072 | C85: -30917.88592 | E85: 2072 | G85: -30917.88592 | J85: -30917.88592 | K85: -3306.050251 | L85: -3306.050251
B86: 2073 | C86: -31536.24364 | E86: 2073 | G86: -31536.24364 | J86: -31536.24364 | K86: -3242.472361 | L86: -3242.472361
B87: 2074 | C87: -32166.96851 | E87: 2074 | G87: -64333.93703 | J87: -32166.96851 | K87: -3180.117124 | L87: -6360.234247
B88: 2075 | C88: -32810.30788 | E88: 2075 | G88: -32810.30788 | J88: -32810.30788 | K88: -3118.961025 | L88: -3118.961025
B89: 2076 | C89: -33466.51404 | E89: 2076 | G89: -33466.51404 | J89: -33466.51404 | K89: -3058.981005 | L89: -3058.981005
B90: 2077 | C90: -34135.84432 | E90: 2077 | G90: -34135.84432 | J90: -34135.84432 | K90: -3000.154448 | L90: -3000.154448
B91: 2078 | C91: -34818.56121 | E91: 2078 | G91: -34818.56121 | J91: -34818.56121 | K91: -2942.45917 | L91: -2942.45917
B92: 2079 | C92: -35514.93243 | E92: 2079 | G92: -35514.93243 | J92: -35514.93243 | K92: -2885.873416 | L92: -2885.873416
B93: 2080 | C93: -36225.23108 | E93: 2080 | G93: -36225.23108 | I93: =IF($B93=$C$21,$C$24,"") ->  | J93: =IF($B93>=$C$21,IF($B93<=$C$22,$C93,""),"") -> -36225.23108 | K93: =IF(SUM($I93:$J93)/((1+$C$13)^($B93-$C$21))<0,SUM($I93:$J93)/((1+$C$13)^($B93-$C$21)),"") -> -2830.375851 | L93: =IF($E93>=$F$21,IF($E93<=$F$22,IF(SUM($F93:$G93)/((1+$C$13)^($E93-$F$21))<0,SUM($F93:$G93)/((1+$C$13)^($E93-$F$21)),""),""),"") -> -2830.375851
B94: 2081 | C94: -36949.7357 | E94: 2081 | G94: -36949.7357 | J94: -36949.7357 | K94: -2775.945546 | L94: -2775.945546
B95: =B94+1 -> 2082 | C95: -37688.73042 | E95: =E94+1 -> 2082 | G95: -37688.73042 | J95: -37688.73042 | K95: -2722.561978 | L95: -2722.561978
B96: =B95+1 -> 2083 | C96: -38442.50503 | E96: =E95+1 -> 2083 | G96: -38442.50503 | J96: -38442.50503 | K96: -2670.205017 | L96: -2670.205017
B97: =B96+1 -> 2084 | C97: -39211.35513 | E97: =E96+1 -> 2084 | G97: -78422.71025 | J97: -39211.35513 | K97: -2618.85492 | L97: -5237.70984
B98: =B97+1 -> 2085 | C98: -39995.58223 | E98: =E97+1 -> 2085 | G98: -39995.58223 | J98: -39995.58223 | K98: -2568.492326 | L98: -2568.492326
B99: 2086 | C99: -40795.49387 | E99: 2086 | G99: -40795.49387 | J99: -40795.49387 | K99: -2519.098242 | L99: -2519.098242
B100: 2087 | C100: -41611.40375 | E100: 2087 | G100: -41611.40375 | J100: -41611.40375 | K100: -2470.654045 | L100: -2470.654045
B101: 2088 | C101: -42443.63183 | E101: 2088 | G101: -42443.63183 | J101: -42443.63183 | K101: -2423.141468 | L101: -2423.141468
B102: 2089 | C102: -43292.50446 | E102: 2089 | G102: -43292.50446 | J102: -43292.50446 | K102: -2376.542593 | L102: -2376.542593
B103: 2090 | E103: 2090
B104: 2091 | E104: 2091
B105: 2092 | E105: 2092
B106: 2093 | E106: 2093
B107: 2094 | E107: 2094
B108: =B107+1 -> 2095 | E108: =E107+1 -> 2095
B109: =B108+1 -> 2096 | E109: =E108+1 -> 2096
B110: 2097 | E110: 2097
B111: 2098 | E111: 2098
B112: 2099 | E112: 2099
B113: 2100 | E113: 2100
B114: 2101 | E114: 2101
B115: 2102 | E115: 2102
B116: 2103 | E116: 2103
B117: 2104 | E117: 2104
B118: 2105 | E118: 2105
B119: 2106 | E119: 2106
B120: 2107 | E120: 2107
B121: 2108 | E121: 2108
B122: 2109 | E122: 2109
B123: 2110 | E123: 2110
B124: 2111 | E124: 2111
B125: 2112 | E125: 2112
B126: 2113 | E126: 2113
B127: 2114 | E127: 2114
B128: 2115 | E128: 2115
B129: 2116 | E129: 2116
B130: 2117 | E130: 2117
B131: 2118 | E131: 2118
B132: 2119 | E132: 2119
B133: 2120 | E133: 2120
B134: 2121 | E134: 2121
B135: 2122 | E135: 2122
B136: 2123 | E136: 2123
B137: 2124 | E137: 2124
B138: 2125 | E138: 2125
B139: 2126 | E139: 2126
B140: 2127 | E140: 2127
B141: 2128 | E141: 2128
B142: 2129 | E142: 2129
B143: 2130 | E143: 2130
B144: 2131 | E144: 2131
B145: 2132 | E145: 2132
B146: 2133 | E146: 2133
B147: 2134 | E147: 2134

Sheet 15. EAA
B3: Fane 15. EAA-beregning for projekt Enghave Park
B5: Vejledning:
B6: Dette dokument kan anvendes til at vurdere, hvorvidt klimatilpasning ved hhv. sædvanlig afhjælpning eller alternativt projekt er mest omkostningseffektivt. Oplysninger om forventet årlig effektiv rente
B7: samt omkostninger til anlæg og drift skal indtastes i de orange celler. Det bemærkes, at omkostninger indgår som negative tal.
B8: Herefter beregnes den årlige ækvivalente annuitet ved de to typer klimatilpasningsinitiativer. Sidst beregnes hvilket klimatilpasningsinitiativ, som er mest omkostningseffektivt
B11: Rente | E11: Resultater
B13: Forventet årlig effektiv rente | C13: 0.04 | E13: Årlig ækvivalent annuitet ved sædvanlig afhjælpning | F13: =IF(SUM($C$24:$C$147)<0,($C$13*SUM($K$28:$K$147)/(1-(1+$C$13)^(-($C$22-$C$21+1)))),"") -> -10129877.38
E14: Årlig ækvivalent annuitet ved alternativt klimatilpasningsprojekt | F14: =IF(SUM($F$28:$G$147)<0,($C$13*SUM($L$28:$L$147)/(1-(1+$C$13)^(-($F$22-$F$21+1)))),"") -> -1728330.552
E16: Konklusion | F16: =IF($F$13<0,IF($F$13<>$F$14,IF($F$13>$F$14,"Sædvanlig afhjælpning er mest omkostningseffektivt","Alternativt projekt er mest omkostningseffektivt"),"Sædvanlig afhjælpning og alternativt projekt er lige omkostningseffektivt"),"") -> Alternativt projekt er mest omkostningseffektivt
B19: Klimatilpasning ved sædvanlig afhjælpning | E19: Klimatilpasning ved alternativt klimatilpasningsprojekt
B21: Projektets startår | C21: 2015 | E21: Projektets startår | F21: 2015 | L21: =IF($E21>=$F$21,IF($E21<=$F$22,SUM($F21:$G21),""),"") -> 
B22: Projektets slutår | C22: 2089 | E22: Projektets slutår | F22: 2064 | L22: =IF($E22>=$F$21,IF($E22<=$F$22,SUM($F22:$G22),""),"") -> 
B24: Samlede anlægsomkostninger | C24: -200000000
B27: År | C27: Forventede driftsomkostninger i år t | E27: År | F27: Tilskud til anlægsomkostninger betalt i år t | G27: Tilskud til driftsomkostninger betalt i år t | I27: Sædvanlig afhjælpning: Cash-flow for anlæg | J27: Sædvanlig afhjælpning: Cash-flow for drift | K27: Tilbagediskonteret cash-flow for sædvanlig afhjælpning | L27: Tilbagediskonteret cash-flow for alternativt projekt
B28: 2015 | C28: -1000000 | E28: 2015 | F28: -2166707.007 | G28: -50000 | I28: =IF($B28=$C$21,$C$24,"") -> -200000000 | J28: =IF($B28>=$C$21,IF($B28<=$C$22,$C28,""),"") -> -1000000 | K28: =IF(SUM($I28:$J28)/((1+$C$13)^($B28-$C$21))<0,SUM($I28:$J28)/((1+$C$13)^($B28-$C$21)),"") -> -201000000 | L28: =IF($E28>=$F$21,IF($E28<=$F$22,IF(SUM($F28:$G28)/((1+$C$13)^($E28-$F$21))<0,SUM($F28:$G28)/((1+$C$13)^($E28-$F$21)),""),""),"") -> -2216707.007
B29: 2016 | C29: -1020000 | E29: 2016 | F29: -2166707.007 | G29: -51000 | I29: =IF($B29=$C$21,$C$24,"") ->  | J29: =IF($B29>=$C$21,IF($B29<=$C$22,$C29,""),"") -> -1020000 | K29: =IF(SUM($I29:$J29)/((1+$C$13)^($B29-$C$21))<0,SUM($I29:$J29)/((1+$C$13)^($B29-$C$21)),"") -> -980769.2308 | L29: =IF($E29>=$F$21,IF($E29<=$F$22,IF(SUM($F29:$G29)/((1+$C$13)^($E29-$F$21))<0,SUM($F29:$G29)/((1+$C$13)^($E29-$F$21)),""),""),"") -> -2132410.584
B30: =B29+1 -> 2017 | C30: -1040400 | E30: =E29+1 -> 2017 | F30: -2166707.007 | G30: -52020 | J30: -1040400 | K30: -961908.284 | L30: -2051337.84
B31: =B30+1 -> 2018 | C31: -1061208 | E31: =E30+1 -> 2018 | F31: -2166707.007 | G31: -53060.4 | J31: -1061208 | K31: -943410.0478 | L31: -1973365.142
B32: 2019 | C32: -1082432.16 | E32: 2019 | F32: -2166707.007 | G32: -108243.216 | J32: -1082432.16 | K32: -925267.5469 | L32: -1944636.985
B33: 2020 | C33: -1104080.803 | E33: 2020 | F33: -2166707.007 | G33: -55204.04016 | J33: -1104080.803 | K33: -907473.9402 | L33: -1826248.919
B34: 2021 | C34: -1126162.419 | E34: 2021 | F34: -2166707.007 | G34: -56308.12096 | J34: -1126162.419 | K34: -890022.5183 | L34: -1756881.147
B35: 2022 | C35: -1148685.668 | E35: 2022 | F35: -2166707.007 | G35: -57434.28338 | J35: -1148685.668 | K35: -872906.7006 | L35: -1690164.586
B36: 2023 | C36: -1171659.381 | E36: 2023 | F36: -2166707.007 | G36: -58582.96905 | J36: -1171659.381 | K36: -856120.0333 | L36: -1625997.589
B37: 2024 | C37: -1195092.569 | E37: 2024 | F37: -2166707.007 | G37: -119509.2569 | J37: -1195092.569 | K37: -839656.1865 | L37: -1606265.222
B38: 2025 | C38: -1218994.42 | E38: 2025 | F38: -2166707.007 | G38: -60949.721 | J38: -1218994.42 | K38: -823508.9521 | L38: -1504925.066
B39: 2026 | C39: -1243374.308 | E39: 2026 | F39: -2166707.007 | G39: -62168.71542 | J39: -1243374.308 | K39: -807672.2415 | L39: -1447835.168
B40: 2027 | C40: -1268241.795 | E40: 2027 | F40: -2166707.007 | G40: -63412.08973 | J40: -1268241.795 | K40: -792140.083 | L40: -1392925.808
B41: 2028 | C41: -1293606.63 | E41: 2028 | F41: -2166707.007 | G41: -64680.33152 | J41: -1293606.63 | K41: -776906.6199 | L41: -1340113.412
B42: 2029 | C42: -1319478.763 | E42: 2029 | F42: -2166707.007 | G42: -131947.8763 | J42: -1319478.763 | K42: -761966.108 | L42: -1327415.919
B43: 2030 | C43: -1345868.338 | E43: 2030 | F43: -2166707.007 | G43: -67293.41692 | J43: -1345868.338 | K43: -747312.9136 | L43: -1240461.135
B44: 2031 | C44: -1372785.705 | E44: 2031 | F44: -2166707.007 | G44: -68639.28525 | J44: -1372785.705 | K44: -732941.5114 | L44: -1193469.661
B45: 2032 | C45: -1400241.419 | E45: 2032 | F45: -2166707.007 | G45: -70012.07096 | J45: -1400241.419 | K45: -718846.4823 | L45: -1148271.733
B46: 2033 | C46: -1428246.248 | E46: 2033 | F46: -2166707.007 | G46: -71412.31238 | J46: -1428246.248 | K46: -705022.5115 | L46: -1104798.634
B47: 2034 | C47: -1456811.173 | E47: 2034 | F47: -2166707.007 | G47: -145681.1173 | J47: -1456811.173 | K47: -691464.3863 | L47: -1097557.505
B48: 2035 | C48: -1485947.396 | E48: 2035 | F48: -2166707.007 | G48: -74297.3698 | J48: -1485947.396 | K48: -678166.9943 | L48: -1022765.144
B49: 2036 | C49: -1515666.344 | E49: 2036 | F49: -2166707.007 | G49: -75783.31719 | J49: -1515666.344 | K49: -665125.3213 | L49: -984080.1068
B50: 2037 | C50: -1545979.671 | E50: 2037 | F50: -2166707.007 | G50: -77298.98354 | J50: -1545979.671 | K50: -652334.4497 | L50: -946870.4155
B51: 2038 | C51: -1576899.264 | E51: 2038 | F51: -2166707.007 | G51: -78844.96321 | J51: -1576899.264 | K51: -639789.5565 | L51: -911079.5673
B52: 2039 | C52: -1608437.249 | E52: 2039 | F52: -2166707.007 | G52: -160843.7249 | J52: -1608437.249 | K52: -627485.9112 | L52: -908027.5233
B53: 2040 | C53: -1640605.994 | E53: 2040 | G53: -82030.29972 | J53: -1640605.994 | K53: -615418.8744 | L53: -30770.94372
B54: 2041 | C54: -1673418.114 | E54: 2041 | G54: -83670.90572 | J54: -1673418.114 | K54: -603583.896 | L54: -30179.1948
B55: 2042 | C55: -1706886.477 | E55: 2042 | G55: -85344.32383 | J55: -1706886.477 | K55: -591976.5134 | L55: -29598.82567
B56: 2043 | C56: -1741024.206 | E56: 2043 | G56: -87051.21031 | J56: -1741024.206 | K56: -580592.3497 | L56: -29029.61749
B57: 2044 | C57: -1775844.69 | E57: 2044 | G57: -177584.469 | J57: -1775844.69 | K57: -569427.1122 | L57: -56942.71122
B58: 2045 | C58: -1811361.584 | E58: 2045 | G58: -90568.07921 | J58: -1811361.584 | K58: -558476.5908 | L58: -27923.82954
B59: 2046 | C59: -1847588.816 | E59: 2046 | G59: -92379.44079 | J59: -1847588.816 | K59: -547736.6564 | L59: -27386.83282
B60: 2047 | C60: -1884540.592 | E60: 2047 | G60: -94227.02961 | J60: -1884540.592 | K60: -537203.2592 | L60: -26860.16296
B61: 2048 | C61: -1922231.404 | E61: 2048 | G61: -96111.5702 | J61: -1922231.404 | K61: -526872.4272 | L61: -26343.62136
B62: 2049 | C62: -1960676.032 | E62: 2049 | G62: -196067.6032 | J62: -1960676.032 | K62: -516740.2652 | L62: -51674.02652
B63: 2050 | C63: -1999889.553 | E63: 2050 | G63: -99994.47763 | J63: -1999889.553 | K63: -506802.9524 | L63: -25340.14762
B64: 2051 | C64: -2039887.344 | E64: 2051 | G64: -101994.3672 | J64: -2039887.344 | K64: -497056.7418 | L64: -24852.83709
B65: 2052 | C65: -2080685.091 | E65: 2052 | G65: -104034.2545 | J65: -2080685.091 | K65: -487497.9583 | L65: -24374.89791
B66: 2053 | C66: -2122298.792 | E66: 2053 | G66: -106114.9396 | J66: -2122298.792 | K66: -478122.9975 | L66: -23906.14988
B67: 2054 | C67: -2164744.768 | E67: 2054 | G67: -216474.4768 | J67: -2164744.768 | K67: -468928.3245 | L67: -46892.83245
B68: 2055 | C68: -2208039.664 | E68: 2055 | G68: -110401.9832 | J68: -2208039.664 | K68: -459910.4721 | L68: -22995.52361
B69: 2056 | C69: -2252200.457 | E69: 2056 | G69: -112610.0228 | J69: -2252200.457 | K69: -451066.04 | L69: -22553.302
B70: 2057 | C70: -2297244.466 | E70: 2057 | G70: -114862.2233 | J70: -2297244.466 | K70: -442391.693 | L70: -22119.58465
B71: 2058 | C71: -2343189.355 | E71: 2058 | G71: -117159.4678 | J71: -2343189.355 | K71: -433884.1605 | L71: -21694.20802
B72: 2059 | C72: -2390053.142 | E72: 2059 | G72: -239005.3142 | J72: -2390053.142 | K72: -425540.2343 | L72: -42554.02343
B73: 2060 | C73: -2437854.205 | E73: 2060 | G73: -121892.7103 | J73: -2437854.205 | K73: -417356.7683 | L73: -20867.83841
B74: 2061 | C74: -2486611.289 | E74: 2061 | G74: -124330.5645 | J74: -2486611.289 | K74: -409330.6766 | L74: -20466.53383
B75: 2062 | C75: -2536343.515 | E75: 2062 | G75: -126817.1758 | J75: -2536343.515 | K75: -401458.9328 | L75: -20072.94664
B76: 2063 | C76: -2587070.385 | E76: 2063 | G76: -129353.5193 | J76: -2587070.385 | K76: -393738.5687 | L76: -19686.92843
B77: 2064 | C77: -2638811.793 | E77: 2064 | G77: -263881.1793 | J77: -2638811.793 | K77: -386166.6731 | L77: -38616.66731
B78: 2065 | C78: -2691588.029 | E78: 2065 | J78: -2691588.029 | K78: -378740.391
B79: 2066 | C79: -2745419.79 | E79: 2066 | J79: -2745419.79 | K79: -371456.9219
B80: 2067 | C80: -2800328.185 | E80: 2067 | J80: -2800328.185 | K80: -364313.5196
B81: 2068 | C81: -2856334.749 | E81: 2068 | J81: -2856334.749 | K81: -357307.4903
B82: 2069 | C82: -2913461.444 | E82: 2069 | J82: -2913461.444 | K82: -350436.1925
B83: 2070 | C83: -2971730.673 | E83: 2070 | J83: -2971730.673 | K83: -343697.0349
B84: 2071 | C84: -3031165.286 | E84: 2071 | J84: -3031165.286 | K84: -337087.4765
B85: 2072 | C85: -3091788.592 | E85: 2072 | J85: -3091788.592 | K85: -330605.0251
B86: 2073 | C86: -3153624.364 | E86: 2073 | J86: -3153624.364 | K86: -324247.2361
B87: 2074 | C87: -3216696.851 | E87: 2074 | J87: -3216696.851 | K87: -318011.7124
B88: 2075 | C88: -3281030.788 | E88: 2075 | J88: -3281030.788 | K88: -311896.1025
B89: 2076 | C89: -3346651.404 | E89: 2076 | J89: -3346651.404 | K89: -305898.1005
B90: 2077 | C90: -3413584.432 | E90: 2077 | J90: -3413584.432 | K90: -300015.4448
B91: 2078 | C91: -3481856.121 | E91: 2078 | J91: -3481856.121 | K91: -294245.917
B92: 2079 | C92: -3551493.243 | E92: 2079 | J92: -3551493.243 | K92: -288587.3416
B93: 2080 | C93: -3622523.108 | E93: 2080 | I93: =IF($B93=$C$21,$C$24,"") ->  | J93: =IF($B93>=$C$21,IF($B93<=$C$22,$C93,""),"") -> -3622523.108 | K93: =IF(SUM($I93:$J93)/((1+$C$13)^($B93-$C$21))<0,SUM($I93:$J93)/((1+$C$13)^($B93-$C$21)),"") -> -283037.5851 | L93: =IF($E93>=$F$21,IF($E93<=$F$22,IF(SUM($F93:$G93)/((1+$C$13)^($E93-$F$21))<0,SUM($F93:$G93)/((1+$C$13)^($E93-$F$21)),""),""),"") -> 
B94: 2081 | C94: -3694973.57 | E94: 2081 | J94: -3694973.57 | K94: -277594.5546
B95: =B94+1 -> 2082 | C95: -3768873.042 | E95: =E94+1 -> 2082 | J95: -3768873.042 | K95: -272256.1978
B96: =B95+1 -> 2083 | C96: -3844250.503 | E96: =E95+1 -> 2083 | J96: -3844250.503 | K96: -267020.5017
B97: =B96+1 -> 2084 | C97: -3921135.513 | E97: =E96+1 -> 2084 | J97: -3921135.513 | K97: -261885.492
B98: =B97+1 -> 2085 | C98: -3999558.223 | E98: =E97+1 -> 2085 | J98: -3999558.223 | K98: -256849.2326
B99: 2086 | C99: -4079549.387 | E99: 2086 | J99: -4079549.387 | K99: -251909.8242
B100: 2087 | C100: -4161140.375 | E100: 2087 | J100: -4161140.375 | K100: -247065.4045
B101: 2088 | C101: -4244363.183 | E101: 2088 | J101: -4244363.183 | K101: -242314.1468
B102: 2089 | C102: -4329250.446 | E102: 2089 | J102: -4329250.446 | K102: -237654.2593
B103: 2090 | E103: 2090
B104: 2091 | E104: 2091
B105: 2092 | E105: 2092
B106: 2093 | E106: 2093
B107: 2094 | E107: 2094
B108: =B107+1 -> 2095 | E108: =E107+1 -> 2095
B109: =B108+1 -> 2096 | E109: =E108+1 -> 2096
B110: 2097 | E110: 2097
B111: 2098 | E111: 2098
B112: 2099 | E112: 2099
B113: 2100 | E113: 2100
B114: 2101 | E114: 2101
B115: 2102 | E115: 2102
B116: 2103 | E116: 2103
B117: 2104 | E117: 2104
B118: 2105 | E118: 2105
B119: 2106 | E119: 2106
B120: 2107 | E120: 2107
B121: 2108 | E121: 2108
B122: 2109 | E122: 2109
B123: 2110 | E123: 2110
B124: 2111 | E124: 2111
B125: 2112 | E125: 2112
B126: 2113 | E126: 2113
B127: 2114 | E127: 2114
B128: 2115 | E128: 2115
B129: 2116 | E129: 2116
B130: 2117 | E130: 2117
B131: 2118 | E131: 2118
B132: 2119 | E132: 2119
B133: 2120 | E133: 2120
B134: 2121 | E134: 2121
B135: 2122 | E135: 2122
B136: 2123 | E136: 2123
B137: 2124 | E137: 2124
B138: 2125 | E138: 2125
B139: 2126 | E139: 2126
B140: 2127 | E140: 2127
B141: 2128 | E141: 2128
B142: 2129 | E142: 2129
B143: 2130 | E143: 2130
B144: 2131 | E144: 2131
B145: 2132 | E145: 2132
B146: 2133 | E146: 2133
B147: 2134 | E147: 2134

Sheet 16. EAA
B3: Fane 16. EAA-beregning for projekt Skt. Kjelds Projektet
B5: Vejledning:
B6: Dette dokument kan anvendes til at vurdere, hvorvidt klimatilpasning ved hhv. sædvanlig afhjælpning eller alternativt projekt er mest omkostningseffektivt. Oplysninger om forventet årlig effektiv rente
B7: samt omkostninger til anlæg og drift skal indtastes i de orange celler. Det bemærkes, at omkostninger indgår som negative tal.
B8: Herefter beregnes den årlige ækvivalente annuitet ved de to typer klimatilpasningsinitiativer. Sidst beregnes hvilket klimatilpasningsinitiativ, som er mest omkostningseffektivt
B11: Rente | E11: Resultater
B13: Forventet årlig effektiv rente | C13: 0.04 | E13: Årlig ækvivalent annuitet ved sædvanlig afhjælpning | F13: =IF(SUM($C$24:$C$147)<0,($C$13*SUM($K$28:$K$147)/(1-(1+$C$13)^(-($C$22-$C$21+1)))),"") -> -650275.7936
E14: Årlig ækvivalent annuitet ved alternativt klimatilpasningsprojekt | F14: =IF(SUM($F$28:$G$147)<0,($C$13*SUM($L$28:$L$147)/(1-(1+$C$13)^(-($F$22-$F$21+1)))),"") -> -181040.6195
E16: Konklusion | F16: =IF($F$13<0,IF($F$13<>$F$14,IF($F$13>$F$14,"Sædvanlig afhjælpning er mest omkostningseffektivt","Alternativt projekt er mest omkostningseffektivt"),"Sædvanlig afhjælpning og alternativt projekt er lige omkostningseffektivt"),"") -> Alternativt projekt er mest omkostningseffektivt
B19: Klimatilpasning ved sædvanlig afhjælpning | E19: Klimatilpasning ved alternativt klimatilpasningsprojekt
B21: Projektets startår | C21: 2015 | E21: Projektets startår | F21: 2015 | L21: =IF($E21>=$F$21,IF($E21<=$F$22,SUM($F21:$G21),""),"") -> 
B22: Projektets slutår | C22: 2089 | E22: Projektets slutår | F22: 2089 | L22: =IF($E22>=$F$21,IF($E22<=$F$22,SUM($F22:$G22),""),"") -> 
B24: Samlede anlægsomkostninger | C24: -15000000
B27: År | C27: Forventede driftsomkostninger i år t | E27: År | F27: Tilskud til anlægsomkostninger betalt i år t | G27: Tilskud til driftsomkostninger betalt i år t | I27: Sædvanlig afhjælpning: Cash-flow for anlæg | J27: Sædvanlig afhjælpning: Cash-flow for drift | K27: Tilbagediskonteret cash-flow for sædvanlig afhjælpning | L27: Tilbagediskonteret cash-flow for alternativt projekt
B28: 2015 | C28: -10000 | E28: 2015 | F28: -237149.8007 | G28: -10000 | I28: =IF($B28=$C$21,$C$24,"") -> -15000000 | J28: =IF($B28>=$C$21,IF($B28<=$C$22,$C28,""),"") -> -10000 | K28: =IF(SUM($I28:$J28)/((1+$C$13)^($B28-$C$21))<0,SUM($I28:$J28)/((1+$C$13)^($B28-$C$21)),"") -> -15010000 | L28: =IF($E28>=$F$21,IF($E28<=$F$22,IF(SUM($F28:$G28)/((1+$C$13)^($E28-$F$21))<0,SUM($F28:$G28)/((1+$C$13)^($E28-$F$21)),""),""),"") -> -247149.8007
B29: 2016 | C29: -10200 | E29: 2016 | F29: -237149.8007 | G29: -10200 | I29: =IF($B29=$C$21,$C$24,"") ->  | J29: =IF($B29>=$C$21,IF($B29<=$C$22,$C29,""),"") -> -10200 | K29: =IF(SUM($I29:$J29)/((1+$C$13)^($B29-$C$21))<0,SUM($I29:$J29)/((1+$C$13)^($B29-$C$21)),"") -> -9807.692308 | L29: =IF($E29>=$F$21,IF($E29<=$F$22,IF(SUM($F29:$G29)/((1+$C$13)^($E29-$F$21))<0,SUM($F29:$G29)/((1+$C$13)^($E29-$F$21)),""),""),"") -> -237836.3468
B30: =B29+1 -> 2017 | C30: -10404 | E30: =E29+1 -> 2017 | F30: -237149.8007 | G30: -10404 | J30: -10404 | K30: -9619.08284 | L30: -228877.4045
B31: =B30+1 -> 2018 | C31: -10612.08 | E31: =E30+1 -> 2018 | F31: -237149.8007 | G31: -10612.08 | J31: -10612.08 | K31: -9434.100478 | L31: -220259.4098
B32: 2019 | C32: -10824.3216 | E32: 2019 | F32: -237149.8007 | G32: -10824.3216 | J32: -10824.3216 | K32: -9252.675469 | L32: -211969.319
B33: 2020 | C33: -11040.80803 | E33: 2020 | F33: -237149.8007 | G33: -11040.80803 | J33: -11040.80803 | K33: -9074.739402 | L33: -203994.589
B34: 2021 | C34: -11261.62419 | E34: 2021 | F34: -237149.8007 | G34: -11261.62419 | J34: -11261.62419 | K34: -8900.225183 | L34: -196323.1574
B35: 2022 | C35: -11486.85668 | E35: 2022 | F35: -237149.8007 | G35: -11486.85668 | J35: -11486.85668 | K35: -8729.067006 | L35: -188943.425
B36: 2023 | C36: -11716.59381 | E36: 2023 | F36: -237149.8007 | G36: -11716.59381 | J36: -11716.59381 | K36: -8561.200333 | L36: -181844.2368
B37: 2024 | C37: -11950.92569 | E37: 2024 | F37: -237149.8007 | G37: -23901.85137 | J37: -11950.92569 | K37: -8396.561865 | L37: -183411.428
B38: 2025 | C38: -12189.9442 | E38: 2025 | F38: -237149.8007 | G38: -12189.9442 | J38: -12189.9442 | K38: -8235.089521 | L38: -168444.9975
B39: 2026 | C39: -12433.74308 | E39: 2026 | F39: -237149.8007 | G39: -12433.74308 | J39: -12433.74308 | K39: -8076.722415 | L39: -162124.7109
B40: 2027 | C40: -12682.41795 | E40: 2027 | F40: -237149.8007 | G40: -12682.41795 | J40: -12682.41795 | K40: -7921.40083 | L40: -156044.4667
B41: 2028 | C41: -12936.0663 | E41: 2028 | F41: -237149.8007 | G41: -12936.0663 | J41: -12936.0663 | K41: -7769.066199 | L41: -150195.091
B42: 2029 | C42: -13194.78763 | E42: 2029 | F42: -237149.8007 | G42: -13194.78763 | J42: -13194.78763 | K42: -7619.66108 | L42: -144567.7619
B43: 2030 | C43: -13458.68338 | E43: 2030 | F43: -237149.8007 | G43: -13458.68338 | J43: -13458.68338 | K43: -7473.129136 | L43: -139153.9953
B44: 2031 | C44: -13727.85705 | E44: 2031 | F44: -237149.8007 | G44: -13727.85705 | J44: -13727.85705 | K44: -7329.415114 | L44: -133945.6326
B45: 2032 | C45: -14002.41419 | E45: 2032 | F45: -237149.8007 | G45: -14002.41419 | J45: -14002.41419 | K45: -7188.464823 | L45: -128934.8278
B46: 2033 | C46: -14282.46248 | E46: 2033 | F46: -237149.8007 | G46: -14282.46248 | J46: -14282.46248 | K46: -7050.225115 | L46: -124114.0356
B47: 2034 | C47: -14568.11173 | E47: 2034 | F47: -237149.8007 | G47: -29136.22345 | J47: -14568.11173 | K47: -6914.643863 | L47: -126390.644
B48: 2035 | C48: -14859.47396 | E48: 2035 | F48: -237149.8007 | G48: -14859.47396 | J48: -14859.47396 | K48: -6781.669943 | L48: -115013.7433
B49: 2036 | C49: -15156.66344 | E49: 2036 | F49: -237149.8007 | G49: -15156.66344 | J49: -15156.66344 | K49: -6651.253213 | L49: -110720.5545
B50: 2037 | C50: -15459.79671 | E50: 2037 | F50: -237149.8007 | G50: -15459.79671 | J50: -15459.79671 | K50: -6523.344497 | L50: -106589.9803
B51: 2038 | C51: -15768.99264 | E51: 2038 | F51: -237149.8007 | G51: -15768.99264 | J51: -15768.99264 | K51: -6397.895565 | L51: -102615.8146
B52: 2039 | C52: -16084.37249 | E52: 2039 | F52: -237149.8007 | G52: -16084.37249 | J52: -16084.37249 | K52: -6274.859112 | L52: -98792.089
B53: 2040 | C53: -16406.05994 | E53: 2040 | G53: -16406.05994 | J53: -16406.05994 | K53: -6154.188744 | L53: -6154.188744
B54: 2041 | C54: -16734.18114 | E54: 2041 | G54: -16734.18114 | J54: -16734.18114 | K54: -6035.83896 | L54: -6035.83896
B55: 2042 | C55: -17068.86477 | E55: 2042 | G55: -17068.86477 | J55: -17068.86477 | K55: -5919.765134 | L55: -5919.765134
B56: 2043 | C56: -17410.24206 | E56: 2043 | G56: -17410.24206 | J56: -17410.24206 | K56: -5805.923497 | L56: -5805.923497
B57: 2044 | C57: -17758.4469 | E57: 2044 | G57: -35516.89381 | J57: -17758.4469 | K57: -5694.271122 | L57: -11388.54224
B58: 2045 | C58: -18113.61584 | E58: 2045 | G58: -18113.61584 | J58: -18113.61584 | K58: -5584.765908 | L58: -5584.765908
B59: 2046 | C59: -18475.88816 | E59: 2046 | G59: -18475.88816 | J59: -18475.88816 | K59: -5477.366564 | L59: -5477.366564
B60: 2047 | C60: -18845.40592 | E60: 2047 | G60: -18845.40592 | J60: -18845.40592 | K60: -5372.032592 | L60: -5372.032592
B61: 2048 | C61: -19222.31404 | E61: 2048 | G61: -19222.31404 | J61: -19222.31404 | K61: -5268.724272 | L61: -5268.724272
B62: 2049 | C62: -19606.76032 | E62: 2049 | G62: -19606.76032 | J62: -19606.76032 | K62: -5167.402652 | L62: -5167.402652
B63: 2050 | C63: -19998.89553 | E63: 2050 | G63: -19998.89553 | J63: -19998.89553 | K63: -5068.029524 | L63: -5068.029524
B64: 2051 | C64: -20398.87344 | E64: 2051 | G64: -20398.87344 | J64: -20398.87344 | K64: -4970.567418 | L64: -4970.567418
B65: 2052 | C65: -20806.85091 | E65: 2052 | G65: -20806.85091 | J65: -20806.85091 | K65: -4874.979583 | L65: -4874.979583
B66: 2053 | C66: -21222.98792 | E66: 2053 | G66: -21222.98792 | J66: -21222.98792 | K66: -4781.229975 | L66: -4781.229975
B67: 2054 | C67: -21647.44768 | E67: 2054 | G67: -43294.89536 | J67: -21647.44768 | K67: -4689.283245 | L67: -9378.56649
B68: 2055 | C68: -22080.39664 | E68: 2055 | G68: -22080.39664 | J68: -22080.39664 | K68: -4599.104721 | L68: -4599.104721
B69: 2056 | C69: -22522.00457 | E69: 2056 | G69: -22522.00457 | J69: -22522.00457 | K69: -4510.6604 | L69: -4510.6604
B70: 2057 | C70: -22972.44466 | E70: 2057 | G70: -22972.44466 | J70: -22972.44466 | K70: -4423.91693 | L70: -4423.91693
B71: 2058 | C71: -23431.89355 | E71: 2058 | G71: -23431.89355 | J71: -23431.89355 | K71: -4338.841605 | L71: -4338.841605
B72: 2059 | C72: -23900.53142 | E72: 2059 | G72: -23900.53142 | J72: -23900.53142 | K72: -4255.402343 | L72: -4255.402343
B73: 2060 | C73: -24378.54205 | E73: 2060 | G73: -24378.54205 | J73: -24378.54205 | K73: -4173.567683 | L73: -4173.567683
B74: 2061 | C74: -24866.11289 | E74: 2061 | G74: -24866.11289 | J74: -24866.11289 | K74: -4093.306766 | L74: -4093.306766
B75: 2062 | C75: -25363.43515 | E75: 2062 | G75: -25363.43515 | J75: -25363.43515 | K75: -4014.589328 | L75: -4014.589328
B76: 2063 | C76: -25870.70385 | E76: 2063 | G76: -25870.70385 | J76: -25870.70385 | K76: -3937.385687 | L76: -3937.385687
B77: 2064 | C77: -26388.11793 | E77: 2064 | G77: -52776.23586 | J77: -26388.11793 | K77: -3861.666731 | L77: -7723.333463
B78: 2065 | C78: -26915.88029 | E78: 2065 | G78: -26915.88029 | J78: -26915.88029 | K78: -3787.40391 | L78: -3787.40391
B79: 2066 | C79: -27454.1979 | E79: 2066 | G79: -27454.1979 | J79: -27454.1979 | K79: -3714.569219 | L79: -3714.569219
B80: 2067 | C80: -28003.28185 | E80: 2067 | G80: -28003.28185 | J80: -28003.28185 | K80: -3643.135196 | L80: -3643.135196
B81: 2068 | C81: -28563.34749 | E81: 2068 | G81: -28563.34749 | J81: -28563.34749 | K81: -3573.074903 | L81: -3573.074903
B82: 2069 | C82: -29134.61444 | E82: 2069 | G82: -29134.61444 | J82: -29134.61444 | K82: -3504.361925 | L82: -3504.361925
B83: 2070 | C83: -29717.30673 | E83: 2070 | G83: -29717.30673 | J83: -29717.30673 | K83: -3436.970349 | L83: -3436.970349
B84: 2071 | C84: -30311.65286 | E84: 2071 | G84: -30311.65286 | J84: -30311.65286 | K84: -3370.874765 | L84: -3370.874765
B85: 2072 | C85: -30917.88592 | E85: 2072 | G85: -30917.88592 | J85: -30917.88592 | K85: -3306.050251 | L85: -3306.050251
B86: 2073 | C86: -31536.24364 | E86: 2073 | G86: -31536.24364 | J86: -31536.24364 | K86: -3242.472361 | L86: -3242.472361
B87: 2074 | C87: -32166.96851 | E87: 2074 | G87: -64333.93703 | J87: -32166.96851 | K87: -3180.117124 | L87: -6360.234247
B88: 2075 | C88: -32810.30788 | E88: 2075 | G88: -32810.30788 | J88: -32810.30788 | K88: -3118.961025 | L88: -3118.961025
B89: 2076 | C89: -33466.51404 | E89: 2076 | G89: -33466.51404 | J89: -33466.51404 | K89: -3058.981005 | L89: -3058.981005
B90: 2077 | C90: -34135.84432 | E90: 2077 | G90: -34135.84432 | J90: -34135.84432 | K90: -3000.154448 | L90: -3000.154448
B91: 2078 | C91: -34818.56121 | E91: 2078 | G91: -34818.56121 | J91: -34818.56121 | K91: -2942.45917 | L91: -2942.45917
B92: 2079 | C92: -35514.93243 | E92: 2079 | G92: -35514.93243 | J92: -35514.93243 | K92: -2885.873416 | L92: -2885.873416
B93: 2080 | C93: -36225.23108 | E93: 2080 | G93: -36225.23108 | I93: =IF($B93=$C$21,$C$24,"") ->  | J93: =IF($B93>=$C$21,IF($B93<=$C$22,$C93,""),"") -> -36225.23108 | K93: =IF(SUM($I93:$J93)/((1+$C$13)^($B93-$C$21))<0,SUM($I93:$J93)/((1+$C$13)^($B93-$C$21)),"") -> -2830.375851 | L93: =IF($E93>=$F$21,IF($E93<=$F$22,IF(SUM($F93:$G93)/((1+$C$13)^($E93-$F$21))<0,SUM($F93:$G93)/((1+$C$13)^($E93-$F$21)),""),""),"") -> -2830.375851
B94: 2081 | C94: -36949.7357 | E94: 2081 | G94: -36949.7357 | J94: -36949.7357 | K94: -2775.945546 | L94: -2775.945546
B95: =B94+1 -> 2082 | C95: -37688.73042 | E95: =E94+1 -> 2082 | G95: -37688.73042 | J95: -37688.73042 | K95: -2722.561978 | L95: -2722.561978
B96: =B95+1 -> 2083 | C96: -38442.50503 | E96: =E95+1 -> 2083 | G96: -38442.50503 | J96: -38442.50503 | K96: -2670.205017 | L96: -2670.205017
B97: =B96+1 -> 2084 | C97: -39211.35513 | E97: =E96+1 -> 2084 | G97: -78422.71025 | J97: -39211.35513 | K97: -2618.85492 | L97: -5237.70984
B98: =B97+1 -> 2085 | C98: -39995.58223 | E98: =E97+1 -> 2085 | G98: -39995.58223 | J98: -39995.58223 | K98: -2568.492326 | L98: -2568.492326
B99: 2086 | C99: -40795.49387 | E99: 2086 | G99: -40795.49387 | J99: -40795.49387 | K99: -2519.098242 | L99: -2519.098242
B100: 2087 | C100: -41611.40375 | E100: 2087 | G100: -41611.40375 | J100: -41611.40375 | K100: -2470.654045 | L100: -2470.654045
B101: 2088 | C101: -42443.63183 | E101: 2088 | G101: -42443.63183 | J101: -42443.63183 | K101: -2423.141468 | L101: -2423.141468
B102: 2089 | C102: -43292.50446 | E102: 2089 | G102: -43292.50446 | J102: -43292.50446 | K102: -2376.542593 | L102: -2376.542593
B103: 2090 | E103: 2090
B104: 2091 | E104: 2091
B105: 2092 | E105: 2092
B106: 2093 | E106: 2093
B107: 2094 | E107: 2094
B108: =B107+1 -> 2095 | E108: =E107+1 -> 2095
B109: =B108+1 -> 2096 | E109: =E108+1 -> 2096
B110: 2097 | E110: 2097
B111: 2098 | E111: 2098
B112: 2099 | E112: 2099
B113: 2100 | E113: 2100
B114: 2101 | E114: 2101
B115: 2102 | E115: 2102
B116: 2103 | E116: 2103
B117: 2104 | E117: 2104
B118: 2105 | E118: 2105
B119: 2106 | E119: 2106
B120: 2107 | E120: 2107
B121: 2108 | E121: 2108
B122: 2109 | E122: 2109
B123: 2110 | E123: 2110
B124: 2111 | E124: 2111
B125: 2112 | E125: 2112
B126: 2113 | E126: 2113
B127: 2114 | E127: 2114
B128: 2115 | E128: 2115
B129: 2116 | E129: 2116
B130: 2117 | E130: 2117
B131: 2118 | E131: 2118
B132: 2119 | E132: 2119
B133: 2120 | E133: 2120
B134: 2121 | E134: 2121
B135: 2122 | E135: 2122
B136: 2123 | E136: 2123
B137: 2124 | E137: 2124
B138: 2125 | E138: 2125
B139: 2126 | E139: 2126
B140: 2127 | E140: 2127
B141: 2128 | E141: 2128
B142: 2129 | E142: 2129
B143: 2130 | E143: 2130
B144: 2131 | E144: 2131
B145: 2132 | E145: 2132
B146: 2133 | E146: 2133
B147: 2134 | E147: 2134

Sheet 17. EAA
B3: Fane 17. EAA-beregning for projekt Grundejerforeningen Øresund
B5: Vejledning:
B6: Dette dokument kan anvendes til at vurdere, hvorvidt klimatilpasning ved hhv. sædvanlig afhjælpning eller alternativt projekt er mest omkostningseffektivt. Oplysninger om forventet årlig effektiv rente
B7: samt omkostninger til anlæg og drift skal indtastes i de orange celler. Det bemærkes, at omkostninger indgår som negative tal.
B8: Herefter beregnes den årlige ækvivalente annuitet ved de to typer klimatilpasningsinitiativer. Sidst beregnes hvilket klimatilpasningsinitiativ, som er mest omkostningseffektivt
B11: Rente | E11: Resultater
B13: Forventet årlig effektiv rente | C13: 0.04 | E13: Årlig ækvivalent annuitet ved sædvanlig afhjælpning | F13: =IF(SUM($C$24:$C$147)<0,($C$13*SUM($K$28:$K$147)/(1-(1+$C$13)^(-($C$22-$C$21+1)))),"") -> -547165.8681
E14: Årlig ækvivalent annuitet ved alternativt klimatilpasningsprojekt | F14: =IF(SUM($F$28:$G$147)<0,($C$13*SUM($L$28:$L$147)/(1-(1+$C$13)^(-($F$22-$F$21+1)))),"") -> -107461.0711
E16: Konklusion | F16: =IF($F$13<0,IF($F$13<>$F$14,IF($F$13>$F$14,"Sædvanlig afhjælpning er mest omkostningseffektivt","Alternativt projekt er mest omkostningseffektivt"),"Sædvanlig afhjælpning og alternativt projekt er lige omkostningseffektivt"),"") -> Alternativt projekt er mest omkostningseffektivt
B19: Klimatilpasning ved sædvanlig afhjælpning | E19: Klimatilpasning ved alternativt klimatilpasningsprojekt
B21: Projektets startår | C21: 2015 | E21: Projektets startår | F21: 2015 | L21: =IF($E21>=$F$21,IF($E21<=$F$22,SUM($F21:$G21),""),"") -> 
B22: Projektets slutår | C22: 2089 | E22: Projektets slutår | F22: 2089 | L22: =IF($E22>=$F$21,IF($E22<=$F$22,SUM($F22:$G22),""),"") -> 
B24: Samlede anlægsomkostninger | C24: -12000000
B27: År | C27: Forventede driftsomkostninger i år t | E27: År | F27: Tilskud til anlægsomkostninger betalt i år t | G27: Tilskud til driftsomkostninger betalt i år t | I27: Sædvanlig afhjælpning: Cash-flow for anlæg | J27: Sædvanlig afhjælpning: Cash-flow for drift | K27: Tilbagediskonteret cash-flow for sædvanlig afhjælpning | L27: Tilbagediskonteret cash-flow for alternativt projekt
B28: 2015 | C28: -24000 | E28: 2015 | F28: -134898.5493 | G28: -16000 | I28: =IF($B28=$C$21,$C$24,"") -> -12000000 | J28: =IF($B28>=$C$21,IF($B28<=$C$22,$C28,""),"") -> -24000 | K28: =IF(SUM($I28:$J28)/((1+$C$13)^($B28-$C$21))<0,SUM($I28:$J28)/((1+$C$13)^($B28-$C$21)),"") -> -12024000 | L28: =IF($E28>=$F$21,IF($E28<=$F$22,IF(SUM($F28:$G28)/((1+$C$13)^($E28-$F$21))<0,SUM($F28:$G28)/((1+$C$13)^($E28-$F$21)),""),""),"") -> -150898.5493
B29: 2016 | C29: -24480 | E29: 2016 | F29: -134898.5493 | G29: -16320 | I29: =IF($B29=$C$21,$C$24,"") ->  | J29: =IF($B29>=$C$21,IF($B29<=$C$22,$C29,""),"") -> -24480 | K29: =IF(SUM($I29:$J29)/((1+$C$13)^($B29-$C$21))<0,SUM($I29:$J29)/((1+$C$13)^($B29-$C$21)),"") -> -23538.46154 | L29: =IF($E29>=$F$21,IF($E29<=$F$22,IF(SUM($F29:$G29)/((1+$C$13)^($E29-$F$21))<0,SUM($F29:$G29)/((1+$C$13)^($E29-$F$21)),""),""),"") -> -145402.4513
B30: =B29+1 -> 2017 | C30: -24969.6 | E30: =E29+1 -> 2017 | F30: -134898.5493 | G30: -16646.4 | J30: -24969.6 | K30: -23085.79882 | L30: -140111.8244
B31: =B30+1 -> 2018 | C31: -25468.992 | E31: =E30+1 -> 2018 | F31: -134898.5493 | G31: -16979.328 | J31: -25468.992 | K31: -22641.84115 | L31: -135018.8799
B32: 2019 | C32: -25978.37184 | E32: 2019 | F32: -134898.5493 | G32: -17318.91456 | J32: -25978.37184 | K32: -22206.42112 | L32: -130116.1261
B33: 2020 | C33: -26497.93928 | E33: 2020 | F33: -134898.5493 | G33: -17665.29285 | J33: -26497.93928 | K33: -21779.37456 | L33: -125396.3574
B34: 2021 | C34: -27027.89806 | E34: 2021 | F34: -134898.5493 | G34: -18018.59871 | J34: -27027.89806 | K34: -21360.54044 | L34: -120852.6433
B35: 2022 | C35: -27568.45602 | E35: 2022 | F35: -134898.5493 | G35: -18378.97068 | J35: -27568.45602 | K35: -20949.76081 | L35: -116478.3178
B36: 2023 | C36: -28119.82514 | E36: 2023 | F36: -134898.5493 | G36: -18746.5501 | J36: -28119.82514 | K36: -20546.8808 | L36: -112266.9692
B37: 2024 | C37: -28682.22165 | E37: 2024 | F37: -134898.5493 | G37: -19121.4811 | J37: -28682.22165 | K37: -20151.74848 | L37: -108212.4304
B38: 2025 | C38: -29255.86608 | E38: 2025 | F38: -134898.5493 | G38: -19503.91072 | J38: -29255.86608 | K38: -19764.21485 | L38: -104308.7696
B39: 2026 | C39: -29840.9834 | E39: 2026 | F39: -134898.5493 | G39: -19893.98893 | J39: -29840.9834 | K39: -19384.1338 | L39: -100550.2812
B40: 2027 | C40: -30437.80307 | E40: 2027 | F40: -134898.5493 | G40: -20291.86871 | J40: -30437.80307 | K40: -19011.36199 | L40: -96931.47722
B41: 2028 | C41: -31046.55913 | E41: 2028 | F41: -134898.5493 | G41: -20697.70609 | J41: -31046.55913 | K41: -18645.75888 | L41: -93447.0789
B42: 2029 | C42: -31667.49031 | E42: 2029 | F42: -134898.5493 | G42: -21111.66021 | J42: -31667.49031 | K42: -18287.18659 | L42: -90092.00867
B43: 2030 | C43: -32300.84012 | E43: 2030 | F43: -134898.5493 | G43: -21533.89341 | J43: -32300.84012 | K43: -17935.50993 | L43: -86861.38252
B44: 2031 | C44: -32946.85692 | E44: 2031 | F44: -134898.5493 | G44: -21964.57128 | J44: -32946.85692 | K44: -17590.59627 | L44: -83750.50255
B45: 2032 | C45: -33605.79406 | E45: 2032 | F45: -134898.5493 | G45: -22403.86271 | J45: -33605.79406 | K45: -17252.31558 | L45: -80754.84984
B46: 2033 | C46: -34277.90994 | E46: 2033 | F46: -134898.5493 | G46: -22851.93996 | J46: -34277.90994 | K46: -16920.54028 | L46: -77870.07761
B47: 2034 | C47: -34963.46814 | E47: 2034 | F47: -134898.5493 | G47: -23308.97876 | J47: -34963.46814 | K47: -16595.14527 | L47: -75092.00463
B48: 2035 | C48: -35662.7375 | E48: 2035 | G48: -23775.15834 | J48: -35662.7375 | K48: -16276.00786 | L48: -10850.67191
B49: 2036 | C49: -36375.99225 | E49: 2036 | G49: -24250.6615 | J49: -36375.99225 | K49: -15963.00771 | L49: -10642.00514
B50: 2037 | C50: -37103.5121 | E50: 2037 | G50: -24735.67473 | J50: -37103.5121 | K50: -15656.02679 | L50: -10437.3512
B51: 2038 | C51: -37845.58234 | E51: 2038 | G51: -25230.38823 | J51: -37845.58234 | K51: -15354.94936 | L51: -10236.6329
B52: 2039 | C52: -38602.49399 | E52: 2039 | G52: -25734.99599 | J52: -38602.49399 | K52: -15059.66187 | L52: -10039.77458
B53: 2040 | C53: -39374.54387 | E53: 2040 | G53: -26249.69591 | J53: -39374.54387 | K53: -14770.05299 | L53: -9846.70199
B54: 2041 | C54: -40162.03474 | E54: 2041 | G54: -26774.68983 | J54: -40162.03474 | K54: -14486.01351 | L54: -9657.342337
B55: 2042 | C55: -40965.27544 | E55: 2042 | G55: -27310.18363 | J55: -40965.27544 | K55: -14207.43632 | L55: -9471.624215
B56: 2043 | C56: -41784.58095 | E56: 2043 | G56: -27856.3873 | J56: -41784.58095 | K56: -13934.21639 | L56: -9289.477595
B57: 2044 | C57: -42620.27257 | E57: 2044 | G57: -28413.51504 | J57: -42620.27257 | K57: -13666.25069 | L57: -9110.833795
B58: 2045 | C58: -43472.67802 | E58: 2045 | G58: -28981.78535 | J58: -43472.67802 | K58: -13403.43818 | L58: -8935.625453
B59: 2046 | C59: -44342.13158 | E59: 2046 | G59: -29561.42105 | J59: -44342.13158 | K59: -13145.67975 | L59: -8763.786502
B60: 2047 | C60: -45228.97421 | E60: 2047 | G60: -30152.64947 | J60: -45228.97421 | K60: -12892.87822 | L60: -8595.252146
B61: 2048 | C61: -46133.55369 | E61: 2048 | G61: -30755.70246 | J61: -46133.55369 | K61: -12644.93825 | L61: -8429.958836
B62: 2049 | C62: -47056.22477 | E62: 2049 | G62: -31370.81651 | J62: -47056.22477 | K62: -12401.76636 | L62: -8267.844243
B63: 2050 | C63: -47997.34926 | E63: 2050 | G63: -31998.23284 | J63: -47997.34926 | K63: -12163.27086 | L63: -8108.847238
B64: 2051 | C64: -48957.29625 | E64: 2051 | G64: -32638.1975 | J64: -48957.29625 | K64: -11929.3618 | L64: -7952.907868
B65: 2052 | C65: -49936.44217 | E65: 2052 | G65: -33290.96145 | J65: -49936.44217 | K65: -11699.951 | L65: -7799.967332
B66: 2053 | C66: -50935.17102 | E66: 2053 | G66: -33956.78068 | J66: -50935.17102 | K66: -11474.95194 | L66: -7649.967961
B67: 2054 | C67: -51953.87444 | E67: 2054 | G67: -34635.91629 | J67: -51953.87444 | K67: -11254.27979 | L67: -7502.853192
B68: 2055 | C68: -52992.95193 | E68: 2055 | G68: -35328.63462 | J68: -52992.95193 | K68: -11037.85133 | L68: -7358.567554
B69: 2056 | C69: -54052.81097 | E69: 2056 | G69: -36035.20731 | J69: -54052.81097 | K69: -10825.58496 | L69: -7217.056639
B70: 2057 | C70: -55133.86718 | E70: 2057 | G70: -36755.91146 | J70: -55133.86718 | K70: -10617.40063 | L70: -7078.267089
B71: 2058 | C71: -56236.54453 | E71: 2058 | G71: -37491.02969 | J71: -56236.54453 | K71: -10413.21985 | L71: -6942.146568
B72: 2059 | C72: -57361.27542 | E72: 2059 | G72: -38240.85028 | J72: -57361.27542 | K72: -10212.96562 | L72: -6808.643749
B73: 2060 | C73: -58508.50093 | E73: 2060 | G73: -39005.66728 | J73: -58508.50093 | K73: -10016.56244 | L73: -6677.708292
B74: 2061 | C74: -59678.67095 | E74: 2061 | G74: -39785.78063 | J74: -59678.67095 | K74: -9823.936238 | L74: -6549.290825
B75: 2062 | C75: -60872.24436 | E75: 2062 | G75: -40581.49624 | J75: -60872.24436 | K75: -9635.014387 | L75: -6423.342925
B76: 2063 | C76: -62089.68925 | E76: 2063 | G76: -41393.12617 | J76: -62089.68925 | K76: -9449.725649 | L76: -6299.817099
B77: 2064 | C77: -63331.48304 | E77: 2064 | G77: -42220.98869 | J77: -63331.48304 | K77: -9268.000156 | L77: -6178.66677
B78: 2065 | C78: -64598.1127 | E78: 2065 | G78: -43065.40847 | J78: -64598.1127 | K78: -9089.769383 | L78: -6059.846256
B79: 2066 | C79: -65890.07495 | E79: 2066 | G79: -43926.71663 | J79: -65890.07495 | K79: -8914.966126 | L79: -5943.310751
B80: 2067 | C80: -67207.87645 | E80: 2067 | G80: -44805.25097 | J80: -67207.87645 | K80: -8743.52447 | L80: -5829.016313
B81: 2068 | C81: -68552.03398 | E81: 2068 | G81: -45701.35599 | J81: -68552.03398 | K81: -8575.379768 | L81: -5716.919846
B82: 2069 | C82: -69923.07466 | E82: 2069 | G82: -46615.38311 | J82: -69923.07466 | K82: -8410.468619 | L82: -5606.979079
B83: 2070 | C83: -71321.53615 | E83: 2070 | G83: -47547.69077 | J83: -71321.53615 | K83: -8248.728838 | L83: -5499.152559
B84: 2071 | C84: -72747.96688 | E84: 2071 | G84: -48498.64458 | J84: -72747.96688 | K84: -8090.099437 | L84: -5393.399625
B85: 2072 | C85: -74202.92621 | E85: 2072 | G85: -49468.61748 | J85: -74202.92621 | K85: -7934.520602 | L85: -5289.680401
B86: 2073 | C86: -75686.98474 | E86: 2073 | G86: -50457.98982 | J86: -75686.98474 | K86: -7781.933667 | L86: -5187.955778
B87: 2074 | C87: -77200.72443 | E87: 2074 | G87: -51467.14962 | J87: -77200.72443 | K87: -7632.281097 | L87: -5088.187398
B88: 2075 | C88: -78744.73892 | E88: 2075 | G88: -52496.49261 | J88: -78744.73892 | K88: -7485.50646 | L88: -4990.33764
B89: 2076 | C89: -80319.6337 | E89: 2076 | G89: -53546.42247 | J89: -80319.6337 | K89: -7341.554413 | L89: -4894.369609
B90: 2077 | C90: -81926.02637 | E90: 2077 | G90: -54617.35092 | J90: -81926.02637 | K90: -7200.370674 | L90: -4800.247116
B91: 2078 | C91: -83564.5469 | E91: 2078 | G91: -55709.69793 | J91: -83564.5469 | K91: -7061.902007 | L91: -4707.934672
B92: 2079 | C92: -85235.83784 | E92: 2079 | G92: -56823.89189 | J92: -85235.83784 | K92: -6926.096199 | L92: -4617.397466
B93: 2080 | C93: -86940.5546 | E93: 2080 | G93: -57960.36973 | I93: =IF($B93=$C$21,$C$24,"") ->  | J93: =IF($B93>=$C$21,IF($B93<=$C$22,$C93,""),"") -> -86940.5546 | K93: =IF(SUM($I93:$J93)/((1+$C$13)^($B93-$C$21))<0,SUM($I93:$J93)/((1+$C$13)^($B93-$C$21)),"") -> -6792.902042 | L93: =IF($E93>=$F$21,IF($E93<=$F$22,IF(SUM($F93:$G93)/((1+$C$13)^($E93-$F$21))<0,SUM($F93:$G93)/((1+$C$13)^($E93-$F$21)),""),""),"") -> -4528.601361
B94: 2081 | C94: -88679.36569 | E94: 2081 | G94: -59119.57712 | J94: -88679.36569 | K94: -6662.26931 | L94: -4441.512873
B95: =B94+1 -> 2082 | C95: -90452.953 | E95: =E94+1 -> 2082 | G95: -60301.96867 | J95: -90452.953 | K95: -6534.148747 | L95: -4356.099164
B96: =B95+1 -> 2083 | C96: -92262.01206 | E96: =E95+1 -> 2083 | G96: -61508.00804 | J96: -92262.01206 | K96: -6408.49204 | L96: -4272.328027
B97: =B96+1 -> 2084 | C97: -94107.2523 | E97: =E96+1 -> 2084 | G97: -62738.1682 | J97: -94107.2523 | K97: -6285.251808 | L97: -4190.167872
B98: =B97+1 -> 2085 | C98: -95989.39735 | E98: =E97+1 -> 2085 | G98: -63992.93157 | J98: -95989.39735 | K98: -6164.381581 | L98: -4109.587721
B99: 2086 | C99: -97909.1853 | E99: 2086 | G99: -65272.7902 | J99: -97909.1853 | K99: -6045.835782 | L99: -4030.557188
B100: 2087 | C100: -99867.369 | E100: 2087 | G100: -66578.246 | J100: -99867.369 | K100: -5929.569709 | L100: -3953.046473
B101: 2088 | C101: -101864.7164 | E101: 2088 | G101: -67909.81092 | J101: -101864.7164 | K101: -5815.539522 | L101: -3877.026348
B102: 2089 | C102: -103902.0107 | E102: 2089 | G102: -69268.00714 | J102: -103902.0107 | K102: -5703.702224 | L102: -3802.468149
B103: 2090 | E103: 2090
B104: 2091 | E104: 2091
B105: 2092 | E105: 2092
B106: 2093 | E106: 2093
B107: 2094 | E107: 2094
B108: =B107+1 -> 2095 | E108: =E107+1 -> 2095
B109: =B108+1 -> 2096 | E109: =E108+1 -> 2096
B110: 2097 | E110: 2097
B111: 2098 | E111: 2098
B112: 2099 | E112: 2099
B113: 2100 | E113: 2100
B114: 2101 | E114: 2101
B115: 2102 | E115: 2102
B116: 2103 | E116: 2103
B117: 2104 | E117: 2104
B118: 2105 | E118: 2105
B119: 2106 | E119: 2106
B120: 2107 | E120: 2107
B121: 2108 | E121: 2108
B122: 2109 | E122: 2109
B123: 2110 | E123: 2110
B124: 2111 | E124: 2111
B125: 2112 | E125: 2112
B126: 2113 | E126: 2113
B127: 2114 | E127: 2114
B128: 2115 | E128: 2115
B129: 2116 | E129: 2116
B130: 2117 | E130: 2117
B131: 2118 | E131: 2118
B132: 2119 | E132: 2119
B133: 2120 | E133: 2120
B134: 2121 | E134: 2121
B135: 2122 | E135: 2122
B136: 2123 | E136: 2123
B137: 2124 | E137: 2124
B138: 2125 | E138: 2125
B139: 2126 | E139: 2126
B140: 2127 | E140: 2127
B141: 2128 | E141: 2128
B142: 2129 | E142: 2129
B143: 2130 | E143: 2130
B144: 2131 | E144: 2131
B145: 2132 | E145: 2132
B146: 2133 | E146: 2133
B147: 2134 | E147: 2134
